Cogmind - Beta 16 @@@ ROGUE MODE // 2025.11.15 @ 21:56:57 Player: Runia Result: Destroyed by Immortal with Experimental Jetlance Performance ------------- Evolutions (7) 3500 Regions Visited (30) 6000 Robots Destroyed (176) 880 Value Destroyed (5752) 5752 Prototype IDs (140) 2800 Alien Tech Used (3) 600 Bonus (4051) 4051 TOTAL SCORE: 23583 Bonus ------- High Alert Combat Kills 453 Follower Combat Kills 30 Registered with UFD 300 Met Optimus in HQ 500 Met Data Miner 300 Met Zhirov 300 Met Warlord at Base 500 MAIN.C Attacked Warlord 500 Warlord Defense Kills 344 Met Optimus at Protoforge 1000 Friendly Fire -176 Cogmind --------- Core Integrity 0/1300 Matter 129/300 Energy 55/100 System Corruption 12% Temperature Cool (0) Movement Flying (125) Ox1 Location -3/Protoforge Parts ------- > --- POWER (2) -------- (None) > --- PROPULSION (7) --- Impulse Thruster Array > --- UTILITY (10) ----- Medium Storage Unit Experimental Optical Array Experimental Active Sensor Suite Experimental Melee Analysis Suite Experimental Core Analyzer Experimental Cloaking Device Graphene Brace > --- WEAPON (2) ------- Concept Disintegration Ray > --- INVENTORY (10) --- Light Antimatter Reactor Advanced Kinecellerator Experimental EM Shield Subatomic Replicator Concept XC Strikerail Concept XC Strikerail Concept XC Strikerail Peak State ------------ > --- POWER ------------ Light Antimatter Reactor Micro Antimatter Reactor > --- PROPULSION ------- Nuclear Pulse Array Improved Diametric Drive Impulse Thruster Array Impulse Thruster Array > --- UTILITY ---------- Medium Storage Unit Experimental Optical Array Experimental Active Sensor Suite Experimental Melee Analysis Suite Experimental Target Analyzer Experimental Core Analyzer Experimental Cloaking Device Centrium Medium Armor Plating Graphene Brace > --- WEAPON ----------- Sigix Broadsword > --- INVENTORY -------- Impulse Thruster Array Advanced Kinecellerator Experimental EM Shield Transdimensional Reconstructor Subatomic Replicator Concept XC Strikerail Concept XC Strikerail Concept XC Strikerail [Rating: 188] Favorites ----------- Power Heavy Ion Engine Engine Heavy Ion Engine Power Core Micro Fission Core Reactor Micro Antimatter Reactor Propulsion Light Treads Treads Light Treads Leg Aluminum Leg Wheel Armored Wheel Flight Unit Nuclear Pulse Array Utility Huge Storage Unit Device Long-range Sensor Array Storage Huge Storage Unit Processor Machine Analyzer Hackware Advanced Hacking Suite Protection Light Armor Plating Weapon Improved Assault Rifle Energy Gun Medium Laser Energy Cannon Advanced Beam Cannon Ballistic Gun Improved Assault Rifle Launcher Mini Grenade Launcher Special Weapon LU-1G1's Laser Shovel Impact Weapon Powered Hammer Slashing Weapon Sigix Broadsword Piercing Weapon Makeshift Spear Build | -11 -10 -10 -9 -9 -9 -9 -6 -6 -6 -6 -6 -6 -5 -5 -5 -5 -5 -5 -5 -4 -4 -4 -4 -4 -4 -4 -3 -3 -3 -3 ------- Run | Yrd Mat Min Mat Sto Rec Scr Fac Was Fac Low Low Dat Pro Fac Was Fac Upp Upp War Pro Fac Was Fac Upp Upp Zhi Pro Res Qua Frg Slots Evolved 14 | . . . 2 . . . 6 . . . . . . 2 . . . . . . 2 . . . . . . 2 . . Power 1 | . . . . . . . . . . . . . . . . . . . . . 1 . . . . . . . . . Propulsion 5 | . . . 1 . . . 2 . . . . . . 1 . . . . . . 1 . . . . . . . . . Utility 8 | . . . 1 . . . 4 . . . . . . 1 . . . . . . . . . . . . . 2 . . Weapon . | . . . . . . . . . . . . . . . . . . . . . . . . . . . . . . . Parts Attached 177 | 3 15 . 4 25 1 14 17 1 8 5 2 1 . 10 1 9 1 . 7 2 9 . 1 . 1 3 2 5 4 26 Power 21 | . 2 . . 2 1 3 1 . 1 1 1 1 . 1 . 2 . . . . 2 . . . . . . . . 3 Engine 11 | . 2 . . 2 1 3 1 . 1 1 . . . . . . . . . . . . . . . . . . . . Core 7 | . . . . . . . . . . . 1 1 . 1 . 2 . . . . 2 . . . . . . . . . Reactor 3 | . . . . . . . . . . . . . . . . . . . . . . . . . . . . . . 3 Propulsion 39 | 3 2 . 1 9 . 3 4 . 3 . . . . 3 . 2 . . . . 1 . . . . . . 2 1 5 Treads 10 | 2 . . 1 7 . . . . . . . . . . . . . . . . . . . . . . . . . . Leg . | . . . . . . . . . . . . . . . . . . . . . . . . . . . . . . . Wheel 5 | 1 2 . . 1 . 1 . . . . . . . . . . . . . . . . . . . . . . . . Hover . | . . . . . . . . . . . . . . . . . . . . . . . . . . . . . . . Flight 24 | . . . . 1 . 2 4 . 3 . . . . 3 . 2 . . . . 1 . . . . . . 2 1 5 Utility 80 | . 5 . 2 5 . 4 10 1 3 3 1 . . 6 1 4 1 . 5 . 6 . . . 1 3 1 2 2 14 Device 39 | . 3 . 1 1 . 1 3 . . 2 1 . . 4 . 1 . . 4 . 5 . . . 1 1 . 2 2 7 Storage 6 | . 2 . . 1 . 2 . . . 1 . . . . . . . . . . . . . . . . . . . . Processor 13 | . . . . 1 . . 2 . 1 . . . . . 1 . 1 . 1 . 1 . . . . . . . . 5 Hackware 12 | . . . . . . 1 4 . 1 . . . . 2 . 2 . . . . . . . . . 1 1 . . . Protection 10 | . . . 1 2 . . 1 1 1 . . . . . . 1 . . . . . . . . . 1 . . . 2 Artifact . | . . . . . . . . . . . . . . . . . . . . . . . . . . . . . . . Weapon 37 | . 6 . 1 9 . 4 2 . 1 1 . . . . . 1 . . 2 2 . . 1 . . . 1 1 1 4 Energy Gun 3 | . 2 . . . . . . . . . . . . . . . . . . . . . . . . . . . . 1 Energy Cannon 3 | . . . . 1 . 1 . . . . . . . . . . . . . 1 . . . . . . . . . . Ballistic Gun 12 | . 2 . 1 6 . . . . . . . . . . . . . . . . . . . . . . . . . 3 Ballistic Cannon . | . . . . . . . . . . . . . . . . . . . . . . . . . . . . . . . Launcher 5 | . 2 . . 1 . . 1 . 1 . . . . . . . . . . . . . . . . . . . . . Special Weapon 4 | . . . . . . 1 . . . . . . . . . . . . 2 . . . . . . . 1 . . . Impact Weapon 2 | . . . . . . 1 . . . . . . . . . . . . . . . . 1 . . . . . . . Slashing Weapon 5 | . . . . 1 . 1 . . . . . . . . . . . . . 1 . . . . . . . 1 1 . Piercing Weapon 3 | . . . . . . . 1 . . 1 . . . . . 1 . . . . . . . . . . . . . . Special Melee Weapon . | . . . . . . . . . . . . . . . . . . . . . . . . . . . . . . . Unidentified Prototypes 28 | . . . . 4 . 1 . 1 1 . . . . 1 . 2 . . 5 . . . . . . 3 . 1 2 7 Corrupted Parts 1 | . . . . . . . 1 . . . . . . . . . . . . . . . . . . . . . . . System Corruption 4 | . . . . . . . 4 . . . . . . . . . . . . . . . . . . . . . . . Parts Lost 38 | . 3 . 1 2 1 . 1 . 6 . . 1 . 1 . 2 . . . . 1 . . . . . . 3 2 14 Power 8 | . 1 . . . . . . . 2 . . 1 . . . 1 . . . . . . . . . . . . . 3 Propulsion 10 | . 1 . . . . . 1 . 2 . . . . . . . . . . . . . . . . . . . 1 5 Utility 16 | . 1 . 1 2 1 . . . . . . . . 1 . 1 . . . . 1 . . . . . . 2 1 5 Weapon 4 | . . . . . . . . . 2 . . . . . . . . . . . . . . . . . . 1 . 1 Highest Loss Streak 6 | . 3 . 1 1 1 . 1 . 5 . . 1 . 1 . 2 . . . . 1 . . . . . . 3 1 6 To Critical Strikes . | . . . . . . . . . . . . . . . . . . . . . . . . . . . . . . . Average Backups 15 | 6 13 18 16 24 25 22 6 9 8 6 6 7 6 6 7 7 7 8 8 9 8 10 10 10 10 10 10 9 9 7 Power . | 1 . . . . . . . 1 . . . 1 . . . . . . . 1 . 1 1 1 1 1 1 1 1 . Propulsion 3 | 4 2 3 2 6 6 5 . 2 1 1 1 1 1 1 1 2 2 2 2 2 1 1 1 1 1 1 1 1 1 1 Utility 6 | . 3 5 4 7 10 10 1 2 3 4 3 4 4 3 5 3 3 4 3 3 3 4 5 6 6 5 5 3 2 1 Weapon 4 | 1 6 10 10 8 6 5 2 3 1 1 1 1 1 . 1 1 2 2 2 3 3 4 2 2 2 2 2 1 1 1 Tool/Special . | . . . . . . . . . . . . . . . . . . . . . . . . . . . . . . . Unused Backups 45 | . 8 . . 10 3 12 . . 1 . . . . 1 . 2 1 . 1 . . . . . . 1 . 1 1 3 Power 3 | . 2 . . . . . . . . . . . . . . 1 . . . . . . . . . . . . . . Propulsion 6 | . 1 . . 2 . . . . . . . . . . . 1 . . . . . . . . . . . 1 . 1 Utility 13 | . 1 . . 1 1 5 . . 1 . . . . 1 . . 1 . 1 . . . . . . 1 . . . . Weapon 20 | . 4 . . 7 2 5 . . . . . . . . . . . . . . . . . . . . . . 1 1 Tool/Special 3 | . . . . . . 2 . . . . . . . . . . . . . . . . . . . . . . . 1 Average Slot Usage (%) 90 | . 97 100 97 98 96 87 87 86 88 80 93 93 93 87 82 82 88 88 87 88 84 84 83 84 84 84 84 84 81 82 Engine 6 | . 13 14 11 10 11 10 6 6 6 . 1 . . . . . . . . . . . . . . . . . . . Core 2 | . . . . . . . . . . . 4 6 6 5 5 4 5 5 5 5 10 10 10 10 10 10 10 9 8 4 Treads 11 | . 13 14 22 22 22 19 . . . . . . . . . . . . . . . . . . . . . . . . Wheel 6 | . 14 14 11 11 11 9 . . . . . . . . . . . . . . . . . . . . . . . . Flight 11 | . . . . . . 4 32 33 33 33 33 33 33 29 23 23 23 23 23 23 21 21 21 21 21 21 21 18 19 20 Device 8 | . 12 14 8 4 7 1 1 13 13 12 13 13 13 9 6 10 11 11 10 11 10 10 10 10 10 10 10 14 22 17 Storage 8 | . 14 14 11 11 11 11 6 6 6 6 6 6 6 6 11 5 5 5 5 5 5 5 5 5 5 5 5 4 4 4 Processor 6 | . . . . 6 11 10 3 . 2 . . . . . 4 5 5 5 5 5 5 5 5 5 5 5 5 4 4 14 Hackware 6 | . . . . . . . 23 20 20 20 20 20 20 17 17 17 17 17 17 17 15 15 15 15 15 15 15 14 14 3 Protection 3 | . . . 10 9 . . 5 . 2 6 6 6 6 9 5 4 5 5 5 5 5 5 4 5 5 5 5 8 . 4 Energy Cannon 3 | . . . . 2 11 7 . . . . . . . . . . . . . . . . . . . . . . 1 . Ballistic Gun 8 | . 18 28 22 17 11 9 . . . . . . . . . . . . . . . . . . . . . . . 4 Piercing Weapon 1 | . . . . . . . 4 6 2 . 6 6 6 5 5 6 11 11 10 10 10 10 5 5 5 5 5 . . . Peak Build Rating 188 | 6 15 12 15 28 28 31 51 56 57 54 57 57 57 81 83 97 97 94 102 102 112 112 113 113 113 114 119 134 150 188 Average Rating 54 | 5 10 11 13 21 26 24 44 50 52 47 56 57 57 73 82 88 94 93 95 98 109 112 110 113 113 112 114 127 135 167 On Entrance 71 | 6 6 12 12 14 28 24 27 50 50 48 54 57 57 57 81 83 97 94 94 98 98 112 112 113 113 113 114 115 122 141 Avg Prop Armor Cover (%) 14 | . 13 11 15 14 15 19 . . 2 3 . . . . . . . . 1 . . . . . . . . . . 1 Naked Turns . | . . . . . . . . . . . . . . . . . . . . . . . . . . . . . . . Heaviest Build 101 | 12 94 94 97 101 101 99 27 20 32 26 25 24 24 33 32 39 38 38 38 39 44 43 45 41 41 41 37 44 40 56 Greatest Support 54 | 16 16 16 16 16 12 21 26 26 27 26 31 31 26 38 38 44 48 42 48 42 51 51 51 51 51 51 51 54 54 54 Greatest Overweight (x) 8 | . 5 5 6 8 8 8 8 . 1 1 . . . . . . . . . . . . . . . . . . . 1 Average Overweight (x) 1 | . 4 5 5 7 7 4 . . . . . . . . . . . . . . . . . . . . . . . . Largest Inventory Capacity 25 | 8 25 25 25 25 25 25 10 10 10 10 10 10 10 10 10 10 10 10 10 10 10 10 10 10 10 10 10 10 10 10 Average Capacity 18 | 8 23 25 25 25 25 23 10 10 10 10 10 10 10 10 10 10 10 10 10 10 10 10 10 10 10 10 10 10 10 10 Most Carried 25 | 6 23 18 20 25 25 25 10 10 10 8 9 8 7 10 10 10 10 10 10 10 10 10 10 10 10 10 10 10 10 10 Average Carried 16 | 4 13 18 16 24 24 22 7 10 9 7 7 7 7 8 9 9 9 10 9 10 8 10 9 10 10 9 10 9 9 8 Final Capacity 25 | 8 25 25 25 25 25 10 10 10 10 10 10 10 10 10 10 10 10 10 10 10 10 10 10 10 10 10 10 10 10 10 Final Carried 25 | 4 18 18 19 25 25 10 10 10 8 6 8 7 7 9 10 10 10 10 10 10 10 10 10 10 10 10 10 10 7 7 Class Distribution -------------------- 32% | Mutant 29% | Hacker-Sprinter 17% | Commander-Mutant 8% | Scavenger-Mutant 3% | Hacker-Ninja 3% | Scavenger-Scout Dominant Class ---------------- Mutant | -10/Materials Mutant | -10/Mines Mutant | -9/Materials Mutant | -9/Storage Mutant | -9/Recycling Commander-Mutant | -9/Scraptown Hacker-Sprinter | -6/Factory Hacker-Sprinter | -6/Waste Hacker-Sprinter | -6/Factory Hacker-Mutant | -6/Lower Caves Hacker-Sprinter | -6/Lower Caves Hacker-Sprinter | -6/Data Miner Hacker-Sprinter | -5/Proximity Caves Hacker-Sprinter | -5/Factory Hacker-Sprinter | -5/Waste Hacker-Sprinter | -5/Factory Hacker-Sprinter | -5/Upper Caves Hacker-Sprinter | -5/Upper Caves Hacker-Sprinter | -5/Warlord Hacker-Sprinter | -4/Proximity Caves Hacker-Sprinter | -4/Factory Hacker-Sprinter | -4/Waste Hacker-Sprinter | -4/Factory Hacker-Sprinter | -4/Upper Caves Hacker-Sprinter | -4/Upper Caves Hacker-Sprinter | -4/Zhirov Hacker-Sprinter | -3/Proximity Caves Hacker-Scout | -3/Research Hacker-Ninja | -3/Quarantine Scavenger-Scout | -3/Protoforge Resources | -11 -10 -10 -9 -9 -9 -9 -6 -6 -6 -6 -6 -6 -5 -5 -5 -5 -5 -5 -5 -4 -4 -4 -4 -4 -4 -4 -3 -3 -3 -3 ----------- Run | Yrd Mat Min Mat Sto Rec Scr Fac Was Fac Low Low Dat Pro Fac Was Fac Upp Upp War Pro Fac Was Fac Upp Upp Zhi Pro Res Qua Frg Matter Collected 4830 | 200 590 8 53 900 83 170 115 . 197 121 181 . . 170 . 116 166 . 168 40 . . 90 . . . 245 40 34 1143 Remotely . | . . . . . . . . . . . . . . . . . . . . . . . . . . . . . . . Salvage Created 7350 | . 730 11 53 1476 956 186 358 . 636 . 100 . . 328 . . 106 . 123 . . . 104 . . . 40 107 146 1890 Parts 395 | . 45 3 4 107 30 2 18 . 21 . 4 . . 24 . . 1 . 3 . . . 3 . . . 4 5 10 111 Haulers Intercepted 14 | . 2 . . 5 1 . 1 . 1 . . . . 2 . . . . . . . . . . . . . 1 1 . Recyclers Shooed 5 | . 1 . . 2 . . 1 . . . . . . 1 . . . . . . . . . . . . . . . . Parts Field Recycled . | . . . . . . . . . . . . . . . . . . . . . . . . . . . . . . . Retrieved Matter . | . . . . . . . . . . . . . . . . . . . . . . . . . . . . . . . Parts Self-Destructed 24 | . . . . . . . . . . . 10 . . . . . . . . 1 . . . . 10 . 3 . . . Prevented 3 | . . . . . . . . . . . . . . . . . 3 . . . . . . . . . . . . . Parts Restored . | . . . . . . . . . . . . . . . . . . . . . . . . . . . . . . . Kills | -11 -10 -10 -9 -9 -9 -9 -6 -6 -6 -6 -6 -6 -5 -5 -5 -5 -5 -5 -5 -4 -4 -4 -4 -4 -4 -4 -3 -3 -3 -3 ------- Run | Yrd Mat Min Mat Sto Rec Scr Fac Was Fac Low Low Dat Pro Fac Was Fac Upp Upp War Pro Fac Was Fac Upp Upp Zhi Pro Res Qua Frg Combat Hostiles Destroyed 102 | . 15 3 1 22 5 . 3 . . . 1 . . 12 . . . . 3 . . . . . . . 4 . 5 28 Melee 6 | . . . . 3 . . . . . . 1 . . . . . . . . . . . . . . . . . 1 1 Guns 54 | . 12 1 1 12 2 . . . . . . . . . . . . . . . . . . . . . . . . 26 Cannons 5 | . . . . 1 2 . . . . . . . . . . . . . 1 . . . . . . . 1 . . . AOE 35 | . 3 2 . 6 . . 3 . . . . . . 12 . . . . 2 . . . . . . . 3 . 4 . Classes Destroyed 25 | . 6 . 1 4 3 . . . 1 . 1 . . . . . . . 2 . . . . . . . . . . 7 Worker 10 | . . . . 6 . 1 1 . 1 . . . . 1 . . . . . . . . . . . . . . . . Builder 10 | . . . . 4 . . 3 . . . . . . . . . . . . . . . 1 . . . . 1 1 . Tunneler 2 | . . . . . . . . . 1 . . . . . . . . . . . . . 1 . . . . . . . Hauler 14 | . 2 . . 5 1 . 1 . 1 . . . . 2 . . . . . . . . . . . . . 1 1 . Recycler 18 | . 1 . . 2 9 1 1 . 4 . . . . . . . . . . . . . . . . . . . . . Minesweeper 2 | . . . . . . . . . . . 1 . . . . . 1 . . . . . . . . . . . . . Mechanic 1 | . . . . 1 . . . . . . . . . . . . . . . . . . . . . . . . . . Operator 6 | . 2 . . 3 . . 1 . . . . . . . . . . . . . . . . . . . . . . . Drone 6 | . . . . . . . . . . . . . . . . . . . . . . . . . . . . . . 6 Watcher 7 | . 1 . . 2 . . . . . . . . . . . . . . . . . . 2 . . . . . . 2 Swarmer 36 | . 3 3 . 4 . 1 3 . . . . . . 12 . . . . . . . . . . . . 4 . 4 2 Saboteur 1 | . . . . . . . . . . . . . . . . . . . . . . . . . . . . . . 1 Grunt 26 | . 12 . . 10 1 1 . . . . 1 . . . . . . . 1 . . . . . . . . . . . Duelist 3 | . . . . 1 . 1 . . . . . . . . . . . . . . . . . . . . . . . 1 Protector 2 | . . . . . . . . . . . . . . . . . . . 1 . . . . . . . . . . 1 Sentry 10 | . . . 1 7 1 . . . . . . . . . . . . . . . . . . . . . . . . 1 Demolisher 1 | . . . . . 1 . . . . . . . . . . . . . . . . . . . . . . . . . Specialist 5 | . . . . . . . . . . . . . . . . . . . . . . . . . . . . . . 5 Hunter 4 | . . . . . 1 . . . . . . . . . . . . . . . . . . . . . . . . 3 Programmer 4 | . . . . . 1 . . . . . . . . . . . . . . . . . . . . . . . 1 2 Behemoth 1 | . . . . . . . . . . . . . . . . . . . 1 . . . . . . . . . . . Hotshot 1 | . . . . . . . . . . . . . . . . . . . . . . . . . . . . . . 1 Overlord 1 | . . . . . . . . . . . . . . . . . . . . . . . . . . . . . . 1 Executioner 3 | . . . . . . . . . . . . . . . . . . . . . . . . . . . . . . 3 Alpha 7 1 | . . . . . . . . . . . . . . . . . . . . . . . . . . . . . . 1 Elite 1 | . . . . . . . . . . . . . . . . . . . . . . . . . . . . . . 1 Packrat 1 | . . . . . . . . . . . . . . . . . 1 . . . . . . . . . . . . . Best Kill Streak 9 | . 3 3 1 9 6 . 7 . 3 . 2 . . 4 . . 1 . 3 . . . 1 . . . 4 1 4 9 Combat Bots Only 9 | . 3 3 1 4 4 . 3 . . . 1 . . 4 . . . . 3 . . . . . . . 4 . 4 9 Max Kills in Single Turn 6 | . 2 2 1 6 1 1 4 . 2 . 1 . . 3 . . 1 . 2 . . . 1 . . . 2 1 3 2 Gunslinging . | . . . . . . . . . . . . . . . . . . . . . . . . . . . . . . . Exploded 3 | . 2 2 . 3 . . 2 . . . . . . 3 . . . . 1 . . . . . . . 2 . 3 . Melee 1 | . . . . 1 . . . . . . 1 . . . . . . . . . . . . . . . . . 1 1 Uniques/NPCs Destroyed . | . . . . . . . . . . . . . . . . . . . . . . . . . . . . . . . Combat | -11 -10 -10 -9 -9 -9 -9 -6 -6 -6 -6 -6 -6 -5 -5 -5 -5 -5 -5 -5 -4 -4 -4 -4 -4 -4 -4 -3 -3 -3 -3 -------- Run | Yrd Mat Min Mat Sto Rec Scr Fac Was Fac Low Low Dat Pro Fac Was Fac Upp Upp War Pro Fac Was Fac Upp Upp Zhi Pro Res Qua Frg Hostile Shots Fired 934 | . 51 28 4 100 29 8 20 . 131 . 4 3 . 26 . 42 3 . 8 6 8 . 15 1 8 . 15 82 103 239 Missed 460 | . 15 5 . 28 5 4 11 . 83 . 3 2 . 7 . 25 1 . 5 4 4 . 13 . 4 . 10 60 65 106 Hits 474 | . 36 23 4 72 24 4 9 . 48 . 1 1 . 19 . 17 2 . 3 2 4 . 2 1 4 . 5 22 38 133 Melee 19 | . . . . . . 1 . . . . 1 . . . . . . . . . . . . . . . . . . 17 Projectile 455 | . 36 23 4 72 24 3 9 . 48 . . 1 . 19 . 17 2 . 3 2 4 . 2 1 4 . 5 22 38 116 AOE 7 | . . . . . 2 . . . 2 . . . . . . 3 . . . . . . . . . . . . . . Critical Strikes 26 | . . . . 3 . . . . . . . . . 1 . 1 . . . . . . . . . . . 1 2 18 Actively Blocked 20 | . . . . . . . . . . . . . . 1 . . . . . . . . . . . . . 1 . 18 Part Disruptions 3 | . . . . . . . . . . . . . . . . . . . . . . . . . . . . . . 3 Damage Taken 10025 | . 822 185 59 920 375 86 129 . 730 . 25 45 . 392 . 431 37 . 66 41 72 . 198 18 75 . 113 503 863 3840 Core 2120 | . 156 47 . 38 12 32 6 . 278 . 25 11 . 115 . 81 . . 19 . 23 . 25 . . . 21 68 94 1069 Absorbed by Shields 94 | . . . . . . . 15 . . . . . . . . . . . . . . . . . . . . . . 79 Redirected to Shielding 275 | . . . . . . . . . 28 . . . . 26 . 62 . . . . . . . . . . 81 78 . . Regen/Repaired (Parts) 1175 | . . . . 60 . . 30 . . . . . . 16 . . . . 2 . 85 . 83 . . . . . 481 418 Core Remaining (%) 71 | 100 . 18 . . . 79 . . . . . . 62 . . . . . . 78 . . . . . . 94 . . . Volleys Fired 285 | . 76 9 4 69 26 . 2 . 4 . . . . 8 . . . . 2 1 . . . . . . 2 . 3 79 Largest 2 | . 2 2 2 2 2 . 1 . 1 . . . . 1 . . . . 1 1 . . . . . . 1 . 1 2 Hottest 100 | . 100 46 46 91 91 . 39 . 43 . . . . 43 . . . . . 90 . . . . . . . . . 64 Shots Fired 524 | . 149 16 8 134 52 . 2 . 4 . . . . 8 . . . . 2 1 . . . . . . 2 . 3 143 Gun 468 | . 146 15 8 130 26 . . . . . . . . . . . . . . . . . . . . . . . . 143 Cannon 28 | . . . . 1 26 . . . . . . . . . . . . . . 1 . . . . . . . . . . Launcher 21 | . 3 1 . 3 . . 2 . 4 . . . . 8 . . . . . . . . . . . . . . . . Special 7 | . . . . . . . . . . . . . . . . . . . 2 . . . . . . . 2 . 3 . Kinetic 440 | . 130 15 8 130 26 . . . . . . . . . . . . . . . . . . . . . . . . 131 Thermal 44 | . 16 . . 1 26 . . . . . . . . . . . . . . 1 . . . . . . . . . . Explosive 28 | . 3 1 . 3 . . 2 . 4 . . . . 8 . . . . 2 . . . . . . . 2 . 3 . Electromagnetic . | . . . . . . . . . . . . . . . . . . . . . . . . . . . . . . . Entropic 12 | . . . . . . . . . . . . . . . . . . . . . . . . . . . . . . 12 Robot Hit Streak 26 | . 12 2 3 9 12 . . . 4 . . . . 5 . . . . 7 . . . . . . . 9 . 10 26 Robot Miss Streak 4 | . 4 4 2 3 2 . 2 . . . . . . . . . . . . . . . . . . . . . 1 2 Penetration Max 2 | . . . . . . . . . . . . . . . . . . . . . . . . . . . . . . 2 Secondary Targets 4 | . . . . 1 . . . . . . . . . . . . . . . . . . . . . . . . . 3 Max Gunslinging Chain 1 | . . . . 1 . . . . . . . . . . . . . . . . . . . . . . . . . 1 Shots Hit Robots 435 | . 96 4 5 113 31 5 11 . 8 . 2 1 . 13 . 1 2 . 2 . . . 6 . . . 2 3 8 122 Core Hits 244 | . 43 3 2 56 17 1 12 . 9 . 2 . . 18 . . 1 . 6 . . . 1 . . . 4 2 7 60 Critical Kills 10 | . . . . 1 1 . . . . . . . . . . . . . . . . . 1 . . . . . . 7 Critical Parts Destroyed 15 | . 1 . . 1 . 1 . . . . . . . . . . . . . . . . 1 . . . . . . 11 Critical Strikes 41 | . 2 . . 3 1 1 3 . 1 . . . . 2 . 1 1 . . . . . 2 . . . 1 1 2 20 Burn 1 | . 1 . . . . . . . . . . . . . . . . . . . . . . . . . . . . . Meltdown 1 | . . . . . 1 . . . . . . . . . . . . . . . . . . . . . . . . . Destroy 23 | . 1 . . 2 . . . . . . . . . . . . . . . . . . . . . . . . . 20 Smash 3 | . . . . . . 1 . . . . . . . . . . . . . . . . 2 . . . . . . . Sever 4 | . . . . 1 . . . . . . . . . . . . . . . . . . . . . . 1 . 2 . Impale 9 | . . . . . . . 3 . 1 . . . . 2 . 1 1 . . . . . . . . . . 1 . . Melee Attacks 209 | . . . . 30 . 7 14 . 6 . 2 24 . 31 . 19 8 . 10 8 6 . 11 . 2 . 4 7 12 8 Impact 26 | . . . . . . 5 . . . . . . . . . . . . . . . . 9 . 1 . 3 3 5 . Slashing 54 | . . . . 30 . 2 4 . . . . . . . . . . . . . . . . . . . . 3 7 8 Piercing 129 | . . . . . . . 10 . 6 . 2 24 . 31 . 19 8 . 10 8 6 . 2 . 1 . 1 1 . . Sneak Attacks 37 | . . . . 8 . 5 4 . 4 . 1 1 . 2 . . 2 . . . . . 3 . . . . 3 2 2 Combat Hostiles . | . . . . . . . . . . . . . . . . . . . . . . . . . . . . . . . Follow-up Attacks 1 | . . . . . . . . . . . . . . . . . . . . . . . . . . . . 1 . . Damage Inflicted 17297 | . 1056 164 73 2802 620 268 924 . 671 . 125 83 . 1563 . 47 138 . 634 . . . 482 . . . 575 257 1753 5062 Guns 7165 | . 884 72 73 1418 207 . . . . . . . . . . . . . . . . . . . . . . . . 4511 Cannons 433 | . . . . 20 413 . . . . . . . . . . . . . . . . . . . . . . . . . Explosions 4731 | . 172 92 . 605 . . 400 . 403 . . . . 1037 . . . . 531 . . . . . . . 484 . 1007 . Melee 4673 | . . . . 759 . 268 524 . 268 . 125 83 . 526 . 47 138 . . . . . 482 . . . . 257 645 551 Ramming . | . . . . . . . . . . . . . . . . . . . . . . . . . . . . . . . Kinetic 6635 | . 760 72 73 1418 207 . . . . . . . . . . . . . . . . . . . . . . . . 4105 Thermal 557 | . 124 . . 20 413 . . . . . . . . . . . . . . . . . . . . . . . . . Explosive 4731 | . 172 92 . 605 . . 400 . 403 . . . . 1037 . . . . 531 . . . . . . . 484 . 1007 . Electromagnetic . | . . . . . . . . . . . . . . . . . . . . . . . . . . . . . . . Impact 1014 | . . . . . . 268 . . . . . . . . . . . . . . . . 482 . . . . 88 176 . Slashing 2411 | . . . . 759 . . 230 . . . . . . . . . . . 103 . . . . . . . 91 107 570 551 Piercing 1543 | . . . . . . . 294 . 268 . 125 83 . 526 . 47 138 . . . . . . . . . . 62 . . Entropic 406 | . . . . . . . . . . . . . . . . . . . . . . . . . . . . . . 406 Highest Corruption 13 | . 9 9 . . . . 4 9 13 13 3 3 3 . . . . . 1 1 . . . . . . . 2 3 12 Average Corruption 6 | . 9 9 . . . . 4 6 10 7 3 3 3 . . . . . 1 1 . . . . . . . 1 2 8 Corruption Purged 10 | . . . . . . . . . . 10 . . . . . . . . . . . . . . . . . . . . Corruption Blocked 10 | . . . . . . . . . . . . . . . 7 3 . . . . . . . . . . . . . . Effects 96 | . 13 5 . . . . 2 . 16 11 1 5 . . . . . . . . . . . . . . . . 7 36 Message Errors 20 | . 4 . . . . . . . 3 2 1 2 . . . . . . . . . . . . . . . . 3 5 Matter Fused 23 | . 1 2 . . . . . . 3 5 . 1 . . . . . . . . . . . . . . . . 1 10 Heat Flow Errors 13 | . 4 1 . . . . . . 4 . . . . . . . . . . . . . . . . . . . 1 3 Energy Discharges 11 | . 2 . . . . . 2 . . 3 . 1 . . . . . . . . . . . . . . . . 1 2 Parts Rejected 4 | . . . . . . . . . . . . . . . . . . . . . . . . . . . . . 1 3 Data Loss (minor) 9 | . 1 1 . . . . . . 2 1 . 1 . . . . . . . . . . . . . . . . . 3 Data Loss (major) 3 | . 1 . . . . . . . . . . . . . . . . . . . . . . . . . . . . 2 Alerts 4 | . . . . . . . . . 1 . . . . . . . . . . . . . . . . . . . . 3 Misdirections 8 | . . . . . . . . . 3 . . . . . . . . . . . . . . . . . . . . 5 Weapon Failures 1 | . . 1 . . . . . . . . . . . . . . . . . . . . . . . . . . . . Overload Shots . | . . . . . . . . . . . . . . . . . . . . . . . . . . . . . . . Overflow Damage 1165 | . 10 . . 32 . 135 124 . 32 . . . . 99 . 59 42 . 5 . . . 251 . . . 29 . 66 281 Projectiles . | . . . . . . . . . . . . . . . . . . . . . . . . . . . . . . . Explosions 173 | . 10 . . . . . . . 32 . . . . 90 . . . . 5 . . . . . . . 29 . 7 . Melee 992 | . . . . 32 . 135 124 . . . . . . 9 . 59 42 . . . . . 251 . . . . . 59 281 Knockbacks 2 | . . . . . . . . . . . . . . . . . . . . . . . 2 . . . . . . . Impact 2 | . . . . . . . . . . . . . . . . . . . . . . . 2 . . . . . . . Kinetic . | . . . . . . . . . . . . . . . . . . . . . . . . . . . . . . . Secondary . | . . . . . . . . . . . . . . . . . . . . . . . . . . . . . . . Self-Inflicted Damage 188 | . 21 . . . . . . . 135 . . . . 32 . . . . . . . . . . . . . . . . Shots 7 | . 1 . . . . . . . 5 . . . . 1 . . . . . . . . . . . . . . . . Rammed 1 | . . . . . . 1 . . . . . . . . . . . . . . . . . . . . . . . . Targets Rammed 1 | . . . . . . 1 . . . . . . . . . . . . . . . . . . . . . . . . Kicked . | . . . . . . . . . . . . . . . . . . . . . . . . . . . . . . . Crushed . | . . . . . . . . . . . . . . . . . . . . . . . . . . . . . . . Highest Temperature 273 | . 198 201 5 24 184 2 6 . 273 . 13 38 . 14 . 73 68 . 56 38 2 . 5 . 4 . . . 50 118 Average Temperature 70 | . 73 114 3 6 48 2 6 . 142 . 9 20 . 6 . 37 34 . 30 17 2 . 5 . 4 . . . 50 60 Received Heat Transfer 1113 | . 222 . 18 393 42 30 36 . 99 . . . . 9 . 21 . . . 12 18 . 12 . 18 . 24 . 42 117 Effects 1 | . . . . . . . . . 1 . . . . . . . . . . . . . . . . . . . . . Interference 1 | . . . . . . . . . 1 . . . . . . . . . . . . . . . . . . . . . Siege Activations . | . . . . . . . . . . . . . . . . . . . . . . . . . . . . . . . Martial Activations . | . . . . . . . . . . . . . . . . . . . . . . . . . . . . . . . Shielding Activations . | . . . . . . . . . . . . . . . . . . . . . . . . . . . . . . . Robots Disrupted . | . . . . . . . . . . . . . . . . . . . . . . . . . . . . . . . Combat Hostiles . | . . . . . . . . . . . . . . . . . . . . . . . . . . . . . . . Robots Corrupted 5 | . . . . . . 2 . . . . . . . . . . . . . . . . 2 . . . . . 1 . Combat Hostiles . | . . . . . . . . . . . . . . . . . . . . . . . . . . . . . . . Parts Fried 11 | . . . . . . 4 . . . . . . . . . . 1 . . . . . 5 . . . . . 1 . Impact Corruptions 17 | . . . . . . 7 . . . . . . . . . . . . . . . . 9 . . . . . 1 . Robots Melted 1 | . . . . . 1 . . . . . . . . . . . . . . . . . . . . . . . . . Combat Hostiles 1 | . . . . . 1 . . . . . . . . . . . . . . . . . . . . . . . . . Parts Melted 6 | . 2 . . . 3 . . . . . . . . . . . . . . . . . . . . . . . . 1 Heat Transferred 1221 | . 444 . . 37 740 . . . . . . . . . . . . . . . . . . . . . . . . . Parts Sabotaged . | . . . . . . . . . . . . . . . . . . . . . . . . . . . . . . . Parts Stolen . | . . . . . . . . . . . . . . . . . . . . . . . . . . . . . . . Parts Stripped . | . . . . . . . . . . . . . . . . . . . . . . . . . . . . . . . Power Chain Reactions 1 | . . . . . . . . . 1 . . . . . . . . . . . . . . . . . . . . . Alert | -11 -10 -10 -9 -9 -9 -9 -6 -6 -6 -6 -6 -6 -5 -5 -5 -5 -5 -5 -5 -4 -4 -4 -4 -4 -4 -4 -3 -3 -3 -3 ------- Run | Yrd Mat Min Mat Sto Rec Scr Fac Was Fac Low Low Dat Pro Fac Was Fac Upp Upp War Pro Fac Was Fac Upp Upp Zhi Pro Res Qua Frg Maximum Alert Level 3 | . . . . 1 . . . . 1 . . . . 2 . 1 . . . . . . . . . . . 1 2 3 Low Security (%) 71 | 100 100 100 100 53 100 . 100 100 44 . . . . 67 100 93 . . . . 100 100 100 . . . . 82 51 . Level 1 21 | . . . . 46 . . . . 55 . . . . 31 . 6 . . . . . . . . . . . 17 1 55 Level 2 5 | . . . . . . . . . . . . . . . . . . . . . . . . . . . . . 46 28 Level 3 1 | . . . . . . . . . . . . . . . . . . . . . . . . . . . . . . 16 Level 4 . | . . . . . . . . . . . . . . . . . . . . . . . . . . . . . . . Level 5 . | . . . . . . . . . . . . . . . . . . . . . . . . . . . . . . . High Security . | . . . . . . . . . . . . . . . . . . . . . . . . . . . . . . . Max Security . | . . . . . . . . . . . . . . . . . . . . . . . . . . . . . . . Peak Influence 819 | . 126 96 33 296 135 . 105 59 348 . . . . 488 176 244 . . . . 32 . 120 . . . . 281 580 819 Initial 256 | . . 44 33 3 91 . . 29 34 . . . . . 176 116 . . . . . . . . . . . 30 118 256 Average 138 | . 31 50 16 173 26 . 20 41 157 . . . . 161 171 127 . . . . 10 . 59 . . . . 92 309 437 Influence Increases 6872 | . 539 82 30 838 366 . 205 30 514 . 55 . . 697 . 436 5 75 67 60 106 . 239 45 . . 135 451 706 1191 Destroy 0b10 Robot/C 1920 | . 300 60 20 440 100 . 60 . . . 20 . . 240 . 40 . . 40 . . . . . . . 80 . 100 420 Destroy 0b10 Robot/NC 385 | . 30 . . 115 55 . 35 . 35 . 5 . . 15 . . 5 . 5 . . . 20 . . . . 10 10 45 Destroy Leader 420 | . 86 10 10 144 . . 12 . 2 . . . . 34 . 20 . . . . . . 4 . . . 10 2 12 74 Allied During Kill 9 | . . . . . 2 . . . . . . . . . . . . . 7 . . . . . . . . . . . Trap Triggered on 0b10 20 | . . . . . . . . . . . . . . . . 10 . . . . . . 10 . . . . . . . Successful Hack 413 | . 27 . . 17 27 . 12 . 46 . . . . 27 . 42 . . . . 12 . 53 . . . . 41 76 33 Select Force Hacks 240 | . 60 . . . 180 . . . . . . . . . . . . . . . . . . . . . . . . . Disable Machine 435 | . . . . 90 . . 15 . 105 . . . . 30 . 30 . . . . 45 . 15 . . . . . 75 30 Anti-Garrison Action 150 | . . . . . . . . . . . . . . . . . . . . . . . . . . . . . . 150 Destroy Structure 360 | . 21 12 . 32 2 . 11 . 26 . . . . 156 . 24 . . . . 4 . 2 . . . . 8 58 4 Partial Spotted 285 | . . . . . . . . 30 60 . . . . 30 . 15 . . . . . . 60 . . . . 15 15 60 Lose Combat Pursuer 2235 | . 15 . . . . . 60 . 240 . 30 . . 165 . 255 . 75 15 60 45 . 75 45 . . 45 375 360 375 Influence Decreases 6099 | . 425 110 106 614 600 . 120 66 215 320 68 15 . 194 337 440 167 40 71 91 106 . 160 70 51 3 90 285 461 874 Entered New Map 1351 | . . 70 53 7 143 . . 56 15 130 6 15 . . 327 50 61 . 35 31 . . . 30 11 3 . 15 93 200 Time Decay 3829 | . 355 40 53 587 447 . 110 10 140 190 62 . . 184 10 190 106 40 16 60 87 . 160 40 40 . 90 140 238 434 Search Patrol Dispatched 300 | . . . . . . . . . . . . . . . . 100 . . . . . . . . . . . 100 100 . Lost Part 350 | . 30 . . 20 10 . . . 60 . . . . 10 . 20 . . . . 10 . . . . . . 30 20 140 Lost Ally 229 | . . . . . . . 10 . . . . . . . . 80 . . 20 . 9 . . . . . . . 10 100 Purge Threat 40 | . 40 . . . . . . . . . . . . . . . . . . . . . . . . . . . . . Squads Dispatched 59 | . 5 . . 3 . . 3 . 7 . . . . 10 . 6 . . . . 1 . 3 . . . . 9 5 7 Investigation 31 | . 3 . . . . . 2 . 3 . . . . 9 . 5 . . . . 1 . 2 . . . . 4 . 2 Extermination 8 | . . . . . . . 1 . 1 . . . . . . 1 . . . . . . 1 . . . . 2 2 . Reinforcement 17 | . 2 . . 2 . . . . 3 . . . . 1 . . . . . . . . . . . . . 3 3 3 Assault 2 | . . . . . . . . . . . . . . . . . . . . . . . . . . . . . . 2 Garrison 1 | . . . . 1 . . . . . . . . . . . . . . . . . . . . . . . . . . Intercept . | . . . . . . . . . . . . . . . . . . . . . . . . . . . . . . . Searches Triggered 3 | . . . . . . . . . . . . . . . . 1 . . . . . . . . . . . 1 1 . Construction Impeded 2 | . . . . . . . . . 1 . . . . . . . . . . . . . . . . . . . 1 . Haulers Reinforced 2 | . . . . . . . . . 1 . . . . 1 . . . . . . . . . . . . . . . . Active Scanning Responses . | . . . . . . . . . . . . . . . . . . . . . . . . . . . . . . . Cargo Convoy Interrupts . | . . . . . . . . . . . . . . . . . . . . . . . . . . . . . . . Stealth | -11 -10 -10 -9 -9 -9 -9 -6 -6 -6 -6 -6 -6 -5 -5 -5 -5 -5 -5 -5 -4 -4 -4 -4 -4 -4 -4 -3 -3 -3 -3 --------- Run | Yrd Mat Min Mat Sto Rec Scr Fac Was Fac Low Low Dat Pro Fac Was Fac Upp Upp War Pro Fac Was Fac Upp Upp Zhi Pro Res Qua Frg Distress Signals 28 | . 2 . . 4 . . 1 . 1 . . . . 4 . 1 . . . . 1 . 2 . . . . 5 1 6 Communications Jammed 8 | . . . . . . . . . . . . . . . . . . . . . . . . . . . . . 6 2 Distress Signals 4 | . . . . . . . . . . . . . . . . . . . . . . . . . . . . . 2 2 Times Spotted 481 | . 28 3 2 36 4 6 14 2 24 . 9 4 . 24 4 31 1 6 15 8 8 6 14 2 10 . 11 32 39 138 Peak Tracking Total 22 | . 4 3 1 4 4 6 4 2 13 . 5 4 . 12 4 16 1 5 5 4 5 6 6 3 9 . 4 21 10 22 Tactical Retreats 64 | . 1 . . . . . 4 . 6 . 1 . . 2 . 7 . 2 1 1 2 . 2 2 1 . 4 5 9 14 ECM-based Alert Blocks 14 | . . . . . . . . . . . . . . . . . . . . . . . 1 . . . 4 . 9 . Traps | -11 -10 -10 -9 -9 -9 -9 -6 -6 -6 -6 -6 -6 -5 -5 -5 -5 -5 -5 -5 -4 -4 -4 -4 -4 -4 -4 -3 -3 -3 -3 ------- Run | Yrd Mat Min Mat Sto Rec Scr Fac Was Fac Low Low Dat Pro Fac Was Fac Upp Upp War Pro Fac Was Fac Upp Upp Zhi Pro Res Qua Frg Traps Triggered 15 | . 1 . . . . . 2 . 1 . . . . 2 . . . . . . 1 . 2 . . . . 2 . 4 Indirectly . | . . . . . . . . . . . . . . . . . . . . . . . . . . . . . . . Trap Hack Attempts . | . . . . . . . . . . . . . . . . . . . . . . . . . . . . . . . Triggered . | . . . . . . . . . . . . . . . . . . . . . . . . . . . . . . . Disarmed . | . . . . . . . . . . . . . . . . . . . . . . . . . . . . . . . Reprogrammed . | . . . . . . . . . . . . . . . . . . . . . . . . . . . . . . . Reused 4 | . . . . . . . . . . . . . . . . 1 1 1 . . . . 1 . . . . . . . Traps Extracted 2 | . . . . . . . . . . . . . . . . . 1 1 . . . . . . . . . . . . Installed 6 | . . . . . . . . . . . . . . . . 1 2 2 . . . . 1 . . . . . . . Triggered 4 | . . . . . . . . . . . . . . . . 1 1 1 . . . . 1 . . . . . . . Most Traps Carried 6 | . . . . . . . . . . . 6 6 6 6 6 6 5 4 3 3 3 3 3 2 2 2 . . . . Machines | -11 -10 -10 -9 -9 -9 -9 -6 -6 -6 -6 -6 -6 -5 -5 -5 -5 -5 -5 -5 -4 -4 -4 -4 -4 -4 -4 -3 -3 -3 -3 ---------- Run | Yrd Mat Min Mat Sto Rec Scr Fac Was Fac Low Low Dat Pro Fac Was Fac Upp Upp War Pro Fac Was Fac Upp Upp Zhi Pro Res Qua Frg Machines Disabled 33 | . . . . 6 . 2 1 . 7 . . 1 . 2 . 2 . . . . 3 . 1 . . . . . 5 3 Max in Single Turn 6 | . . . . 1 . 1 1 . 6 . . 1 . 2 . 1 . . . . 1 . 1 . . . . . 2 1 Garrison Access 2 | . . . . . . . . . . . . . . . . 1 . . . . . . . . . . . . . 1 Machines Repaired . | . . . . . . . . . . . . . . . . . . . . . . . . . . . . . . . Machines Dismantled . | . . . . . . . . . . . . . . . . . . . . . . . . . . . . . . . Machines Sabotaged . | . . . . . . . . . . . . . . . . . . . . . . . . . . . . . . . Overloaded Fab Kills . | . . . . . . . . . . . . . . . . . . . . . . . . . . . . . . . Hacking | -11 -10 -10 -9 -9 -9 -9 -6 -6 -6 -6 -6 -6 -5 -5 -5 -5 -5 -5 -5 -4 -4 -4 -4 -4 -4 -4 -3 -3 -3 -3 --------- Run | Yrd Mat Min Mat Sto Rec Scr Fac Was Fac Low Low Dat Pro Fac Was Fac Upp Upp War Pro Fac Was Fac Upp Upp Zhi Pro Res Qua Frg Machines Accessed 124 | . 8 . . 8 11 1 10 . 9 . . 4 . 13 . 12 . . 5 . 9 . 7 2 1 4 . 7 6 7 Terminals 57 | . 6 . . 7 5 . 5 . 3 . . . . 5 . 5 . . . . 6 . 3 . . . . 4 4 4 Fabricators 10 | . . . . . . . 2 . 2 . . . . 3 . 1 . . . . 1 . 1 . . . . . . . Repair Stations 9 | . . . . 1 . . 2 . . . . . . 1 . 1 . . . . 1 . 2 . . . . . 1 . Recycling Units 21 | . 2 . . . 6 . 1 . . . . . . 4 . 3 . . . . 1 . . . . . . 2 . 2 Scanalyzers 6 | . . . . . . . . . 2 . . . . . . 1 . . . . . . 1 . . . . 1 1 . Garrison Access 4 | . . . . . . . . . 2 . . . . . . 1 . . . . . . . . . . . . . 1 Total Hacks 389 | . 18 . . 26 20 6 33 . 35 . . 26 . 40 . 34 . . 13 . 36 . 21 4 1 17 . 22 15 22 Successful 255 | . 12 . . 16 13 6 21 . 16 . . 26 . 25 . 18 . . 13 . 26 . 10 4 1 17 . 9 9 13 Failed 132 | . 6 . . 10 7 . 12 . 18 . . . . 15 . 16 . . . . 10 . 11 . . . . 12 6 9 Catastrophic 14 | . . . . . . . 2 . 5 . . . . 2 . 1 . . . . 1 . . . . . . 1 2 . Database Lockouts 2 | . . . . . . . . . 1 . . . . . . . . . . . . . . . . . . 1 . . Manual 136 | . 13 . . 7 13 . 16 . 7 . . . . 24 . 11 . . 1 . 23 . 3 . . . . 4 4 10 Terminals 201 | . 14 . . 20 13 . 19 . 14 . . . . 23 . 18 . . . . 31 . 8 . . . . 16 9 16 Fabricators 37 | . . . . . . . 7 . 9 . . . . 11 . 4 . . . . 2 . 4 . . . . . . . Repair Stations 25 | . . . . 6 . . 5 . . . . . . 1 . 2 . . . . 2 . 6 . . . . . 3 . Recycling Units 30 | . 4 . . . 7 . 2 . . . . . . 5 . 3 . . . . 1 . . . . . . 4 . 4 Scanalyzers 21 | . . . . . . . . . 7 . . . . . . 6 . . . . . . 3 . . . . 2 3 . Garrison Access 8 | . . . . . . . . . 5 . . . . . . 1 . . . . . . . . . . . . . 2 Terminal Hacks 139 | . 4 . . 6 2 6 7 . 5 . . 26 . 9 . 8 . . 13 . 12 . 2 4 1 17 . 7 3 7 Record 29 | . . . . . . . . . . . . 11 . . . . . . 5 . . . . 3 . 5 . . . 5 Part Schematic 20 | . . . . . . . 2 . . . . 8 . 1 . 1 . . . . 3 . . . . 4 . 1 . . Robot Schematic 4 | . . . . . . . . . . . . 4 . . . . . . . . . . . . . . . . . . Robot Analysis 10 | . . . . . . 6 . . . . . . . . . . . . . . . . . . . 4 . . . . Prototype ID Bank 24 | . . . . 1 1 . 2 . 1 . . 3 . . . 1 . . 7 . 2 . 1 . . 4 . . 1 . Open Door 5 | . . . . 2 . . . . . . . . . . . . . . 1 . . . . 1 1 . . . . . Level Access Points 1 | . . . . . . . . . . . . . . . . 1 . . . . . . . . . . . . . . Branch Access Points 7 | . . . . . . . 1 . 1 . . . . 1 . 1 . . . . 1 . 1 . . . . 1 . . Emergency Access Points 2 | . . . . . . . . . . . . . . 1 . . . . . . 1 . . . . . . . . . Machine Index 1 | . . . . . . . . . . . . . . . . . . . . . . . . . . . . 1 . . Terminal Index 5 | . . . . 1 . . 1 . . . . . . . . 1 . . . . 1 . . . . . . . 1 . Recycling Unit Index 2 | . . . . . . . . . . . . . . . . 1 . . . . 1 . . . . . . . . . Garrison Index 1 | . . . . . . . . . 1 . . . . . . . . . . . . . . . . . . . . . Unreport Threat 1 | . 1 . . . . . . . . . . . . . . . . . . . . . . . . . . . . . Locate Traps 6 | . . . . . . . 1 . . . . . . 2 . 1 . . . . 1 . . . . . . . . 1 Transport Status 1 | . . . . 1 . . . . . . . . . . . . . . . . . . . . . . . . . . Recall Investigation 2 | . . . . . . . . . . . . . . 2 . . . . . . . . . . . . . . . . Recall Reinforcements 2 | . . . . . . . . . . . . . . . . . . . . . . . . . . . . 2 . . Hauler Manifests 3 | . . . . . . . . . 1 . . . . . . 1 . . . . 1 . . . . . . . . . Registered Components 4 | . 1 . . . 1 . . . . . . . . . . . . . . . . . . . . . . 1 1 . Zone Layout 9 | . 2 . . 1 . . . . 1 . . . . 2 . . . . . . 1 . . . . . . 1 . 1 Fabricator Hacks 17 | . . . . . . . 3 . 3 . . . . 5 . 2 . . . . 2 . 2 . . . . . . . Network Status 2 | . . . . . . . 1 . . . . . . . . . . . . . 1 . . . . . . . . . Load Schematic 10 | . . . . . . . 1 . 2 . . . . 4 . 1 . . . . 1 . 1 . . . . . . . Build 5 | . . . . . . . 1 . 1 . . . . 1 . 1 . . . . . . 1 . . . . . . . Repair Station Hacks 16 | . . . . 5 . . 3 . . . . . . . . 1 . . . . 2 . 3 . . . . . 2 . Scan Component 7 | . . . . 3 . . 1 . . . . . . . . . . . . . 1 . 1 . . . . . 1 . Repair 6 | . . . . 2 . . 1 . . . . . . . . . . . . . 1 . 1 . . . . . 1 . Refit 3 | . . . . . . . 1 . . . . . . . . 1 . . . . . . 1 . . . . . . . Recycling Unit Hacks 1 | . . . . . . . 1 . . . . . . . . . . . . . . . . . . . . . . . Retrieve Components 1 | . . . . . . . 1 . . . . . . . . . . . . . . . . . . . . . . . Scanalyzer 12 | . . . . . . . . . 4 . . . . . . 2 . . . . . . 3 . . . . 1 2 . Insert Component 2 | . . . . . . . . . 2 . . . . . . . . . . . . . . . . . . . . . Analyze 1 | . . . . . . . . . 1 . . . . . . . . . . . . . . . . . . . . . Retrieve Study 9 | . . . . . . . . . 1 . . . . . . 2 . . . . . . 3 . . . . 1 2 . Garrison Access Hacks 1 | . . . . . . . . . . . . . . . . 1 . . . . . . . . . . . . . . Seal Access 1 | . . . . . . . . . . . . . . . . 1 . . . . . . . . . . . . . . Unauthorized Hacks 69 | . 8 . . 5 11 . 7 . 4 . . . . 11 . 4 . . . . 10 . . . . . . 1 2 6 Terminals 41 | . 6 . . 5 5 . 4 . 1 . . . . 4 . 1 . . . . 9 . . . . . . . 2 4 Track 3 | . . . . . . . . . . . . . . . . . . . . . 1 . . . . . . . . 2 Assimilate 4 | . . . . . . . 1 . . . . . . . . . . . . . 2 . . . . . . . 1 . Botnet 10 | . . . . . . . 1 . 1 . . . . 2 . 1 . . . . 4 . . . . . . . . 1 Disrupt 1 | . . . . . . . . . . . . . . . . . . . . . . . . . . . . . 1 . Operators 4 | . . . . . . . 1 . . . . . . 1 . . . . . . 1 . . . . . . . . 1 Skim 19 | . 6 . . 5 5 . 1 . . . . . . 1 . . . . . . 1 . . . . . . . . . Fabricators 7 | . . . . . . . 2 . 3 . . . . 2 . . . . . . . . . . . . . . . . Prioritize 2 | . . . . . . . 1 . 1 . . . . . . . . . . . . . . . . . . . . . Haulers 2 | . . . . . . . 1 . 1 . . . . . . . . . . . . . . . . . . . . . Recompile 3 | . . . . . . . . . 1 . . . . 2 . . . . . . . . . . . . . . . . Repair Stations 1 | . . . . . . . . . . . . . . 1 . . . . . . . . . . . . . . . . Patch 1 | . . . . . . . . . . . . . . 1 . . . . . . . . . . . . . . . . Recycling Units 20 | . 2 . . . 6 . 1 . . . . . . 4 . 3 . . . . 1 . . . . . . 1 . 2 Tunnel 8 | . 2 . . . 6 . . . . . . . . . . . . . . . . . . . . . . . . . Fedlink 10 | . . . . . . . 1 . . . . . . 4 . 2 . . . . 1 . . . . . . 1 . 1 Scrapoids 2 | . . . . . . . . . . . . . . . . 1 . . . . . . . . . . . . . 1 Scanalyzers . | . . . . . . . . . . . . . . . . . . . . . . . . . . . . . . . Garrison Access . | . . . . . . . . . . . . . . . . . . . . . . . . . . . . . . . Data Cores Recovered 1 | . . . . 1 . . . . . . . . . . . . . . . . . . . . . . . . . . Used . | . . . . . . . . . . . . . . . . . . . . . . . . . . . . . . . Hacking Detections 75 | . 6 . . 6 3 . 7 . 8 . . . . 7 . 8 . . . . 6 . 6 . . . . 6 6 6 Full Trace Events 11 | . . . . . . . 1 . 2 . . . . 2 . 2 . . . . . . 2 . . . . 2 . . Feedback Events 2 | . . . . . . . . . . . . . . . . 2 . . . . . . . . . . . . . . Corruption 2 | . . . . . . . . . . . . . . . . 2 . . . . . . . . . . . . . . Feedback Blocked . | . . . . . . . . . . . . . . . . . . . . . . . . . . . . . . . Robot Schematics Acquired 4 | . . . . . . . . . . . . 4 . . . . . . . . . . . . . . . . . . Robots Built . | . . . . . . . . . . . . . . . . . . . . . . . . . . . . . . . Authchips . | . . . . . . . . . . . . . . . . . . . . . . . . . . . . . . . Time . | . . . . . . . . . . . . . . . . . . . . . . . . . . . . . . . Total Robot Build Rating . | . . . . . . . . . . . . . . . . . . . . . . . . . . . . . . . Part Schematics Acquired 21 | . . . . . . . 2 . 1 . . 8 . 1 . 1 . . . . 3 . . . . 4 . 1 . . Parts Built 4 | . . . . . . . 1 . 1 . . . . 1 . 1 . . . . . . . . . . . . . . Authchips 4 | . . . . . . . 1 . 1 . . . . 1 . 1 . . . . . . . . . . . . . . Time 365 | . . . . . . . 67 . 134 . . . . 35 . 53 . . . . . . 76 . . . . . . . Total Part Build Rating 20 | . . . . . . . 4 . 4 . . . . 6 . 6 . . . . . . . . . . . . . . Part Studies Acquired 9 | . . . . . . . . . 1 . . . . . . 2 . . . . . . 3 . . . . 1 2 . Parts Repaired 6 | . . . . 2 . . 1 . . . . . . . . . . . . . 1 . 1 . . . . . 1 . Time 261 | . . . . 90 . . 25 . . . . . . . . . . . . . 62 . 56 . . . . . 28 . Parts Recycled . | . . . . . . . . . . . . . . . . . . . . . . . . . . . . . . . Recycled Matter . | . . . . . . . . . . . . . . . . . . . . . . . . . . . . . . . Retrieved Matter . | . . . . . . . . . . . . . . . . . . . . . . . . . . . . . . . Retrieved Components 1 | . . . . . . . 1 . . . . . . . . . . . . . . . . . . . . . . . Parts Scanalyzed 2 | . . . . . . . . . 2 . . . . . . . . . . . . . . . . . . . . . Part Schematics Acquired 1 | . . . . . . . . . 1 . . . . . . . . . . . . . . . . . . . . . Parts Damaged 1 | . . . . . . . . . 1 . . . . . . . . . . . . . . . . . . . . . Bothacking | -11 -10 -10 -9 -9 -9 -9 -6 -6 -6 -6 -6 -6 -5 -5 -5 -5 -5 -5 -5 -4 -4 -4 -4 -4 -4 -4 -3 -3 -3 -3 ------------ Run | Yrd Mat Min Mat Sto Rec Scr Fac Was Fac Low Low Dat Pro Fac Was Fac Upp Upp War Pro Fac Was Fac Upp Upp Zhi Pro Res Qua Frg Used RIF Installer . | . . . . . . . . . . . . . . . . . . . . . . . . . . . . . . . Robots Hacked . | . . . . . . . . . . . . . . . . . . . . . . . . . . . . . . . Non-combat . | . . . . . . . . . . . . . . . . . . . . . . . . . . . . . . . Combat . | . . . . . . . . . . . . . . . . . . . . . . . . . . . . . . . Robot Hacks Applied . | . . . . . . . . . . . . . . . . . . . . . . . . . . . . . . . Relay Couplers Released 1 | . . . . . . . . . . . . . . . . . . . . . . . . . . . . . . 1 Machine Destruction 1 | . . . . . . . . . . . . . . . . . . . . . . . . . . . . . . 1 Fabnet Peak Effective % . | . . . . . . . . . . . . . . . . . . . . . . . . . . . . . . . Robots Rewired 13 | . . . . . 8 . . . . . . . . . . . . . 5 . . . . . . . . . . . Allies Hacked 1 | . . . . . . . . . . . . . . . . 1 . . . . . . . . . . . . . . Hacks Repelled . | . . . . . . . . . . . . . . . . . . . . . . . . . . . . . . . Allies | -11 -10 -10 -9 -9 -9 -9 -6 -6 -6 -6 -6 -6 -5 -5 -5 -5 -5 -5 -5 -4 -4 -4 -4 -4 -4 -4 -3 -3 -3 -3 -------- Run | Yrd Mat Min Mat Sto Rec Scr Fac Was Fac Low Low Dat Pro Fac Was Fac Upp Upp War Pro Fac Was Fac Upp Upp Zhi Pro Res Qua Frg Total Allies 27 | . . . . . 8 . 1 1 . . . . . . . 5 . . 5 . 1 . . . . . . . 1 5 Largest Group 8 | . . . . . 8 8 1 1 . . . . . . . 4 . . 5 . 1 . . . . . . . 1 5 Highest-Rated Group 326 | . . . . . 80 80 10 31 . . . . . . . 188 . . 269 . 10 . . . . . . . 45 326 Highest-Rated Ally 67 | . . . . . 18 18 10 31 . . . . . . . 47 . . 64 . 10 . . . . . . . 45 67 Total Orders 16 | . . . . . . 13 1 . . . . . . . . . . . 2 . . . . . . . . . . . STAY 10 | . . . . . . 9 1 . . . . . . . . . . . . . . . . . . . . . . . FOLLOW 4 | . . . . . . 4 . . . . . . . . . . . . . . . . . . . . . . . . AID 2 | . . . . . . . . . . . . . . . . . . . 2 . . . . . . . . . . . Ally Attacks 20 | . . . . . . 2 . . . . . . . . . 14 . . . . . . . . . . . . . 4 Total Damage 363 | . . . . . . 36 . . . . . . . . . 247 . . . . . . . . . . . . . 80 Kills 3 | . . . . . . 1 . . . . . . . . . 2 . . . . . . . . . . . . . . Allies Corrupted 2 | . . . . . . 2 . . . . . . . . . . . . . . . . . . . . . . . . Allies Melted 1 | . . . . . . . . . . . . . . . . . . . . 1 . . . . . . . . . . Intel | -11 -10 -10 -9 -9 -9 -9 -6 -6 -6 -6 -6 -6 -5 -5 -5 -5 -5 -5 -5 -4 -4 -4 -4 -4 -4 -4 -3 -3 -3 -3 ------- Run | Yrd Mat Min Mat Sto Rec Scr Fac Was Fac Low Low Dat Pro Fac Was Fac Upp Upp War Pro Fac Was Fac Upp Upp Zhi Pro Res Qua Frg Active Infowar (turns) 11988 | . . . . 1589 1796 3035 23 . 238 3 119 156 71 413 38 390 473 146 424 211 207 22 373 86 87 53 221 283 485 1046 Optics 809 | . . . . . . . . . . . . . . . . . . . . . . . . . . . . . . 809 Sensors 3650 | . . . . . . . . . . . . . . 54 . . 371 146 424 200 195 22 373 86 87 53 211 258 444 726 A.S.S. 306 | . . . . . . . . . . . . . . . . . . . . . . . . . . . . . . 306 IFF 1553 | . . . . . . . 22 . 238 3 119 156 71 413 38 390 103 . . . . . . . . . . . . . Structural 732 | . . . . . . . . . . . . . . . . . . . . . . . . . . . . 181 438 113 Machine Analysis 6420 | . . . . 1589 1796 3035 . . . . . . . . . . . . . . . . . . . . . . . . Cloaking 1211 | . . . . . . . . . . . . . . . . 107 381 91 341 11 . . . . . . . . 33 247 Jamming 751 | . . . . . . . . . . . . . . . . . . . . . . . . . . . . . 393 358 ECM 86 | . . . . . . . 1 . . . . . . . . . . . . . 12 . 6 . . . 10 . 40 17 Robot Analysis Total 10 | . . . . . . 6 . . . . . . . . . . . . . . . . . . . 4 . . . . Derelict Logs Recovered 7 | . . . . . . . . . . 2 1 . 1 . . . 1 . . 2 . . . . . . . . . . Drone Launches . | . . . . . . . . . . . . . . . . . . . . . . . . . . . . . . . Drone Recoveries . | . . . . . . . . . . . . . . . . . . . . . . . . . . . . . . . Exploration | -11 -10 -10 -9 -9 -9 -9 -6 -6 -6 -6 -6 -6 -5 -5 -5 -5 -5 -5 -5 -4 -4 -4 -4 -4 -4 -4 -3 -3 -3 -3 ------------- Run | Yrd Mat Min Mat Sto Rec Scr Fac Was Fac Low Low Dat Pro Fac Was Fac Upp Upp War Pro Fac Was Fac Upp Upp Zhi Pro Res Qua Frg Turns Passed 15768 | 5 1543 88 143 2593 1796 3069 374 30 297 388 152 156 71 426 38 390 473 146 424 211 240 22 373 86 87 53 221 283 513 1077 Spaces Moved 18134 | 1 779 34 66 981 741 2033 842 81 829 184 449 144 274 985 100 1053 561 342 916 433 603 75 863 296 277 133 495 834 874 1856 Core . | . . . . . . . . . . . . . . . . . . . . . . . . . . . . . . . Treads . | . . . . . . . . . . . . . . . . . . . . . . . . . . . . . . . Legs . | . . . . . . . . . . . . . . . . . . . . . . . . . . . . . . . Wheels 3812 | 1 779 34 66 981 741 1210 . . . . . . . . . . . . . . . . . . . . . . . . Hover . | . . . . . . . . . . . . . . . . . . . . . . . . . . . . . . . Flight 14322 | . . . . . . 823 842 81 829 184 449 144 274 985 100 1053 561 342 916 433 603 75 863 296 277 133 495 834 874 1856 Fastest Speed 19 | 100 100 175 175 190 195 34 28 28 27 26 19 19 26 22 28 21 21 28 21 28 29 29 29 29 29 29 29 28 23 20 Average Speed 63 | 100 160 175 187 208 205 136 28 28 28 28 25 25 26 25 28 27 30 30 29 28 29 29 29 29 29 29 29 28 27 25 Slowest Speed 210 | 100 175 175 190 210 210 210 103 28 100 97 26 26 26 28 28 28 32 32 32 28 29 29 29 29 29 29 29 29 30 109 Overloaded Moves 234 | . . . . . . . . . . . 7 11 . . . 28 29 . 26 . . . . . . . . . . 133 Propulsion Burnouts . | . . . . . . . . . . . . . . . . . . . . . . . . . . . . . . . Robots Hopped 28 | . . . . . . . . . 4 . 3 . . . . 5 . . 1 . . . 1 . . . . 7 3 4 Potential Cave-ins 2 | . . . . . . . . . 2 . . . . . . . . . . . . . . . . . . . . . Cave-ins Triggered 1 | . 1 . . . . . . . . . . . . . . . . . . . . . . . . . . . . . Teleports 1 | . . . . . . . . . . . . . . . . . . . . . . . . . . . . . . 1 Exploration Rate (%) 50 | 2 83 11 9 92 90 89 21 68 24 39 63 80 59 24 67 26 64 43 85 61 15 71 24 53 47 60 44 30 74 50 Regions Visited 30 Branch Regions 18 Pre-discovered Areas 19 | . 2 . . 2 8 . . . . . . 1 . 1 . . . . 1 . . . . 1 . 3 . . . . Known Exits Taken 17 | . 1 1 1 1 . . . . 1 . . . . . . 1 1 1 1 1 . . 1 1 1 1 1 1 1 . Unknown Exits Taken 7 | 1 . . . . 1 1 . . . 1 1 1 1 . . . . . . . . . . . . . . . . . Scrap Searched 19 | . . . . . . 5 . . . 2 2 . . . . . 1 2 . 3 . . . . . . 4 . . . Spaces Dug 156 | . 11 12 . 2 . 10 1 . 6 . . 1 . 70 . 9 5 . 6 8 2 . 1 . 1 . 3 4 2 2 Terrain Destroyed 346 | . 19 12 . 27 . 7 10 . 31 . . 1 . 105 . 9 5 . 39 8 2 . 1 . 1 . 38 4 25 2 Melee 59 | . . . . 2 . . 1 . . . . 1 . 14 . 9 5 . 6 7 2 . 1 . 1 . 3 4 2 1 Projectile 2 | . . . . . . . . . . . . . . . . . . . . 1 . . . . . . . . . 1 AOE 272 | . 19 12 . 25 . . 9 . 25 . . . . 91 . . . . 33 . . . . . . . 35 . 23 . Terrain Rammed . | . . . . . . . . . . . . . . . . . . . . . . . . . . . . . . . Walls Destroyed . | . . . . . . . . . . . . . . . . . . . . . . . . . . . . . . . Machines Disabled . | . . . . . . . . . . . . . . . . . . . . . . . . . . . . . . . Actions | -11 -10 -10 -9 -9 -9 -9 -6 -6 -6 -6 -6 -6 -5 -5 -5 -5 -5 -5 -5 -4 -4 -4 -4 -4 -4 -4 -3 -3 -3 -3 --------- Run | Yrd Mat Min Mat Sto Rec Scr Fac Was Fac Low Low Dat Pro Fac Was Fac Upp Upp War Pro Fac Was Fac Upp Upp Zhi Pro Res Qua Frg Total 21542 | 5 940 45 77 1361 963 2319 950 87 872 517 479 238 273 1122 108 1122 851 381 1060 508 659 74 967 295 282 146 561 863 1117 2300 Wait 2144 | . 32 1 . 193 58 226 36 5 10 327 23 70 . 52 7 28 274 36 81 60 25 . 80 . 3 . 57 13 207 240 Move 18057 | . 778 33 65 980 740 2033 842 80 821 183 443 143 273 985 99 1043 560 341 913 432 603 74 860 295 276 132 494 820 867 1849 Hop 23 | . . . . . . . . . 3 . 2 . . . . 4 . . 1 . . . 1 . . . . 6 3 3 Pick Up 146 | . 20 . 3 23 8 15 5 . 6 . 4 . . 12 1 6 2 . 5 . 6 . 4 . . 2 . 5 2 17 Fast Attach 100 | . 7 . 1 8 . 6 11 1 3 2 . . . 5 . 7 . . 8 2 2 . 2 . . 5 . 3 7 20 Attach 77 | 2 2 . 2 3 . 5 8 . 6 3 1 1 . 9 . 2 1 . . . 3 . . . . . . 4 6 19 Detach 28 | . . . . . . 1 4 . 1 1 . . . 3 . . . . 2 . 1 . . . . . . . 2 13 Swap 116 | 1 11 2 1 24 2 5 6 . 5 1 2 . . 2 1 4 3 2 4 4 8 . 5 . 1 1 5 2 2 12 Drop 194 | 2 14 . 1 31 8 21 9 1 7 . 2 . . 15 . 10 2 . 14 2 6 . 5 . 1 6 . 4 6 27 Fire 285 | . 76 9 4 69 26 . 2 . 4 . . . . 8 . . . . 2 1 . . . . . . 2 . 3 79 Melee 196 | . . . . 30 . 7 14 . 6 . 2 24 . 31 . 17 7 . 7 7 5 . 9 . 1 . 3 6 12 8 Ram . | . . . . . . . . . . . . . . . . . . . . . . . . . . . . . . . Kick . | . . . . . . . . . . . . . . . . . . . . . . . . . . . . . . . Crush . | . . . . . . . . . . . . . . . . . . . . . . . . . . . . . . . Escape Stasis 26 | . . . . . . . 13 . . . . . . . . . . . . . . . . . . . . . . 13 Rewire 144 | . . . . . 121 . . . . . . . . . . . . . 23 . . . . . . . . . . . Trap 6 | . . . . . . . . . . . . . . . . 1 2 2 . . . . 1 . . . . . . . Miscellaneous . | . . . . . . . . . . . . . . . . . . . . . . . . . . . . . . . Route ------- -11/Scrapyard -10/Materials (discovered 5 exits: *Mat x3 / *Min x2) -10/Mines (discovered 2 exits: *Mat x2) -9/Materials -9/Storage (discovered 2 exits: *Mat / *Rec) -9/Recycling (discovered 2 exits: [*Fac] / *Scr) -9/Scraptown (discovered 2 exits: *Fac x2) -6/Factory (discovered 4 exits: *Low x2 / Ext x2) -6/Waste -6/Factory (discovered 4 exits: *Low x2 / Ext x2) -6/Lower Caves -6/Lower Caves (discovered 2 exits: *Fac / *Dat) -6/Data Miner -5/Proximity Caves -5/Factory (discovered 3 exits: Fac / *Upp x2) -5/Waste -5/Factory (discovered 6 exits: Fac x4 / *Upp x2) -5/Upper Caves -5/Upper Caves (discovered 2 exits: *Fac / *War) -5/Warlord -4/Proximity Caves -4/Factory (discovered 3 exits: *Upp x2 / Arm) -4/Waste -4/Factory (discovered 4 exits: *Res / *Upp x2 / Arm) -4/Upper Caves -4/Upper Caves -4/Zhirov -3/Proximity Caves -3/Research (discovered 2 exits: *Qua x2) -3/Quarantine (discovered 3 exits: *Res / [*Sec] / *Frg) -3/Protoforge (discovered 1 exit: *Res) History --------- Turn | Location | Event 6 | -11/Scrapyard | Discovered new exit (range 0) 6 | -11/Scrapyard | Entered Materials 50 | -10/Materials | Discovered new exit (range 6) 152 | -10/Materials | Discovered new exit (range 15) 326 | -10/Materials | Build established: Mutant 329 | -10/Materials | Discovered new exit (range 18) 785 | -10/Materials | Discovered new exit (range 16) 920 | -10/Materials | Identified exit to Materials 920 | -10/Materials | Identified exit to Mines 1054 | -10/Materials | Learned Storage emergency access door positions 1151 | -10/Materials | Learned Storage stockpile data 1204 | -10/Materials | Learned Storage emergency access door positions 1236 | -10/Materials | Crushed by falling debris 1267 | -10/Materials | Lost 3 parts (1p1n1u) 1269 | -10/Materials | Core integrity fell below 50% 1549 | -10/Materials | Entered Mines 1618 | -10/Mines | Core integrity fell below 20% 1637 | -10/Mines | Entered Materials 1637 | -9/Materials | Evolved 2 slots: Propulsion x1, Utility x1 1638 | -9/Materials | Identified exit to Storage 1780 | -9/Materials | Entered Storage 2527 | -9/Storage | Garrison activated, responded to threat 2771 | -9/Storage | Discovered new exit (range 16) 3000 | -9/Storage | Repaired Lgt. Armor Plating 3066 | -9/Storage | Repaired Broken Hvy. Ion Engine 3382 | -9/Storage | Build established: Scavenger-Mutant 4182 | -9/Storage | Learned 2 Materials zone layouts 4222 | -9/Storage | Learned 8 Materials zone layouts 4250 | -9/Storage | Identified exit to Materials 4270 | -9/Storage | Identified exit to Recycling 4281 | -9/Storage | Learned location of Zion (-7) 4315 | -9/Storage | Used back door to open Recycling access 4325 | -9/Storage | Build established: Mutant 4337 | -9/Storage | Learned Materials trap positions 4373 | -9/Storage | Entered Recycling 4896 | -9/Recycling | Discovered new exit (range 14) 5001 | -9/Recycling | Scanned before Scraplab entrance 5353 | -9/Recycling | Learned 2 Storage zone layouts 5403 | -9/Recycling | Learned Storage stockpile data 5444 | -9/Recycling | Learned location of 1 exit from Storage 5477 | -9/Recycling | Learned 2 Materials zone layouts 5519 | -9/Recycling | Learned Storage security intel 5981 | -9/Recycling | Build established: Commander-Mutant 6086 | -9/Recycling | Entered Scraplab 6101 | -9/Recycling | Discovered new exit (range 2) 6169 | -9/Recycling | Entered Scraptown 6169 | -9/Scraptown | Accompanied by 8 allies 6251 | -9/Scraptown | Heard Great Nut preacher, LISTEN AND RECITE! 6449 | -9/Scraptown | Visited Symbiants 6470 | -9/Scraptown | Visited The Evicted 6778 | -9/Scraptown | Discovered new exit (range 13) 6925 | -9/Scraptown | Visited Awakened 6969 | -9/Scraptown | Visited Cyclists 7034 | -9/Scraptown | Visited CPS Storage 7055 | -9/Scraptown | Visited SPCMW 7144 | -9/Scraptown | Visited Artisan Demo Area 7618 | -9/Scraptown | Visited UFD Registry 7618 | -9/Scraptown | Registered with UFD as "Flaksink" 7700 | -9/Scraptown | Visited Scrap Suit Storage 7736 | -9/Scraptown | Visited Junk Cannon Lab 7786 | -9/Scraptown | Visited Analyses Database 7832 | -9/Scraptown | Visited DA-N13 Charitable Foundation 7841 | -9/Scraptown | Found DCF Scrap (29 items) 7943 | -9/Scraptown | Visited Derelict Rescue Squad 7956 | -9/Scraptown | Found DRS Beacon 7995 | -9/Scraptown | Visited Curators Association 8083 | -9/Scraptown | Visited Scrapoid Research Area 8142 | -9/Scraptown | Visited LU-1G1's Boring Crew 8211 | -9/Scraptown | Visited Chapter 10 8760 | -9/Scraptown | Build established: Mutant 9098 | -9/Scraptown | Met Optimus 9098 | -9/Scraptown | Accepted into 0bPrime 9196 | -9/Scraptown | Civil war broke out across Scraptown 9201 | -9/Scraptown | Found Prototype Special Weapon 9202 | -9/Scraptown | Identified LU-1G1's Laser Shovel 9236 | -9/Scraptown | Discovered new exit (range 4) 9238 | -9/Scraptown | Entered Factory 9238 | -6/Factory | Evolved 6 slots: Propulsion x2, Utility x4 9261 | -6/Factory | Lost 5 allies 9355 | -6/Factory | Loaded intel: 8 recycling unit locations 9359 | -6/Factory | Discovered new exit (range 11) 9379 | -6/Factory | Identified exit to Lower Caves 9379 | -6/Factory | Identified exit to Extension 9505 | -6/Factory | Fabricated Cld. VTOL Module (x1) 9531 | -6/Factory | Build established: Hacker-Sprinter 9593 | -6/Factory | Repaired Imp. Reaction Control System 9612 | -6/Factory | Manually triggered Chute Trap 9612 | -6/Factory | Sucked down chute 9612 | -6/Factory | Entered Waste 9613 | -6/Waste | Met a frightened Derelict 9625 | -6/Waste | Spotted C-40 Crusher 9625 | -6/Waste | Spotted C-40 Crusher 9626 | -6/Waste | Spotted C-40 Crusher 9627 | -6/Waste | EMP discharged 9628 | -6/Waste | Discovered new exit (range 15) 9628 | -6/Waste | Spotted C-40 Crusher 9642 | -6/Waste | Entered Factory 9739 | -6/Factory | System corruption reached 10% 9746 | -6/Factory | Spotted B-75 Beast 9763 | -6/Factory | Central database locked down 9893 | -6/Factory | Fabricated Cld. VTOL Module? 9939 | -6/Factory | Entered Lower Caves 9963 | -6/Lower Caves | Lost 5 parts (2p2n1w) 10282 | -6/Lower Caves | Learned Factory terminal intel 10320 | -6/Lower Caves | Learned 12 Factory zone layouts 10323 | -6/Lower Caves | Discovered new exit (range 12) 10327 | -6/Lower Caves | Entered another Lower Caves area 10329 | -6/Lower Caves | Discovered new exit (range 12) 10335 | -6/Lower Caves | Learned Factory security intel 10364 | -6/Lower Caves | Encountered a Warlord checkpoint 10478 | -6/Lower Caves | Discovered new exit (range 8) 10479 | -6/Lower Caves | Entered Data Miner 10479 | -6/Data Miner | Discovered new exit (range 6) 10484 | -6/Data Miner | Met Data Miner 10489 | -6/Data Miner | Acquired the access code to Warlord's prototype stash 10489 | -6/Data Miner | Learned location of Section 7 (-3) 10493 | -6/Data Miner | Received God Mode back door access code from Data Miner 10501 | -6/Data Miner | Data Conduit disabled 10635 | -6/Data Miner | Entered Proximity Caves 10657 | -5/Proximity Caves | Learned 4 Factory zone layouts 10703 | -5/Proximity Caves | Discovered new exit (range 12) 10706 | -5/Proximity Caves | Entered Factory 10706 | -5/Factory | Evolved 2 slots: Propulsion x1, Utility x1 10707 | -5/Factory | Identified exit to Factory 10707 | -5/Factory | Identified exit to Upper Caves 10709 | -5/Factory | Loaded intel: 25 terminal locations 10807 | -5/Factory | Loaded intel: 8 recycling unit locations 10807 | -5/Factory | Learned location of Protoforge (-3) 11044 | -5/Factory | Fabricated Adv. Hacking Suite (x1) 11132 | -5/Factory | Manually triggered Chute Trap 11132 | -5/Factory | Sucked down chute 11132 | -5/Factory | Entered Waste 11147 | -5/Waste | EMP discharged 11150 | -5/Waste | Spotted C-40 Crusher 11150 | -5/Waste | Spotted C-40 Crusher 11162 | -5/Waste | Spotted C-40 Crusher 11163 | -5/Waste | Spotted C-40 Crusher 11167 | -5/Waste | Discovered new exit (range 11) 11170 | -5/Waste | Entered Factory 11247 | -5/Factory | Fabricated Adv. Hacking Suite (x1) 11377 | -5/Factory | Loaded intel: 8 recycling unit locations 11384 | -5/Factory | Scrapoids reinforcements arrived? 11447 | -5/Factory | Found Imp. Powered Armor 11470 | -5/Factory | Search patrols dispatched 11560 | -5/Factory | Entered Upper Caves 11918 | -5/Upper Caves | Learned Factory emergency access door positions 12000 | -5/Upper Caves | Discovered new exit (range 5) 12002 | -5/Upper Caves | Identified exit to Upper Caves 12033 | -5/Upper Caves | Entered another Upper Caves area 12040 | -5/Upper Caves | Discovered exit to Factory (range 6) 12175 | -5/Upper Caves | Discovered new exit (range 14) 12179 | -5/Upper Caves | Identified exit to Warlord 12179 | -5/Upper Caves | Entered Warlord 12226 | -5/Warlord | Learned Testing emergency access door positions 12226 | -5/Warlord | Learned 4 Research zone layouts 12226 | -5/Warlord | Learned 4 Testing zone layouts 12227 | -5/Warlord | Learned Factory scanalyzer intel 12279 | -5/Warlord | Found Prototype Special Weapon 12279 | -5/Warlord | Identified RU-N14's Throwing Claymores v3 12281 | -5/Warlord | Found RU-N14's Throwing Claymores v3 12283 | -5/Warlord | Found RU-N14's Throwing Claymores v3 12340 | -5/Warlord | Opened Warlord's prototype stash 12342 | -5/Warlord | Found Prototype Processor 12342 | -5/Warlord | Identified Exp. Armor Integrity Analyzer 12348 | -5/Warlord | Found Prototype Device 12348 | -5/Warlord | Identified Exp. Cloaking Device 12417 | -5/Warlord | Warlord's base attacked by MAIN.C 12497 | -5/Warlord | Rebuked by Warlord 12561 | -5/Warlord | Spotted B-75 Beast 12569 | -5/Warlord | Spotted B-86 Titan 12571 | -5/Warlord | Destroyed B-75 Beast 12585 | -5/Warlord | Discovered new exit (range 9) 12586 | -5/Warlord | Identified exit to Proximity Caves 12603 | -5/Warlord | Entered Proximity Caves 12723 | -4/Proximity Caves | Learned Research terminal intel 12732 | -4/Proximity Caves | P-70 Sage assimilated allied 3P-F3D(S) 12814 | -4/Proximity Caves | Entered Factory 12814 | -4/Factory | Evolved 2 slots: Power x1, Propulsion x1 12816 | -4/Factory | Loaded intel: 4 scanalyzer locations 12845 | -4/Factory | Identified exit to Upper Caves 12845 | -4/Factory | Identified exit to Armory 12866 | -4/Factory | Spotted B-86 Titan 12885 | -4/Factory | Loaded intel: 8 recycling unit locations 13014 | -4/Factory | Repaired Adv. Surge Thruster+? 13054 | -4/Factory | Sucked down chute 13054 | -4/Factory | Entered Waste 13061 | -4/Waste | Spotted C-40 Crusher 13062 | -4/Waste | Spotted C-40 Crusher 13065 | -4/Waste | Spotted C-40 Crusher 13065 | -4/Waste | Spotted C-40 Crusher 13065 | -4/Waste | Spotted C-40 Crusher 13072 | -4/Waste | Spotted C-40 Crusher 13072 | -4/Waste | Discovered new exit (range 12) 13076 | -4/Waste | Identified exit to Factory 13076 | -4/Waste | Entered Factory 13285 | -4/Factory | Repaired Imp. Powered Armor 13307 | -4/Factory | Discovered new exit (range 8) 13449 | -4/Factory | Entered Upper Caves 13503 | -4/Upper Caves | Entered an active Warlord outpost 13505 | -4/Upper Caves | Learned Armory garrison access intel 13505 | -4/Upper Caves | Learned location of Armory (-4) 13534 | -4/Upper Caves | Discovered new exit (range 6) 13535 | -4/Upper Caves | Identified exit to Upper Caves 13535 | -4/Upper Caves | Entered another Upper Caves area 13567 | -4/Upper Caves | Ambushed by wild Derelicts 13621 | -4/Upper Caves | Discovered new exit (range 4) 13622 | -4/Upper Caves | Identified exit to Zhirov 13622 | -4/Upper Caves | Entered Zhirov 13622 | -4/Zhirov | Discovered new exit (range 3) 13628 | -4/Zhirov | Met Zhirov 13633 | -4/Zhirov | Learned location of Command (-1) 13633 | -4/Zhirov | Learned location of Testing (-2) 13636 | -4/Zhirov | Zhirov requested help retrieving the SGEMP Prototype 13641 | -4/Zhirov | Found Alien Artifact 13641 | -4/Zhirov | Identified Integrated Dissipator 13641 | -4/Zhirov | Installed Integrated Dissipator, increased core heat dissipation (+20) 13663 | -4/Zhirov | Found Alien Artifact 13674 | -4/Zhirov | Identified exit to Proximity Caves 13675 | -4/Zhirov | Entered Proximity Caves 13895 | -3/Proximity Caves | Discovered new exit (range 3) 13895 | -3/Proximity Caves | Identified exit to Research 13896 | -3/Proximity Caves | Entered Research 13896 | -3/Research | Evolved 2 slots: Utility x2 13898 | -3/Research | Loaded intel: 23 terminal locations 13907 | -3/Research | Identified exit to Quarantine 13968 | -3/Research | Central database locked down 13976 | -3/Research | Loaded intel: 5 recycling unit locations 14014 | -3/Research | Spotted B-86 Titan 14146 | -3/Research | Search patrols dispatched 14179 | -3/Research | Entered Quarantine 14184 | -3/Quarantine | Lost 3 parts (2u1w) 14203 | -3/Quarantine | Found Alien Artifact 14260 | -3/Quarantine | Repaired Mic. Fission Core+ 14342 | -3/Quarantine | Found Alien Slashing Weapon 14342 | -3/Quarantine | Identified Sigix Broadsword 14403 | -3/Quarantine | Discovered new exit (range 16) 14487 | -3/Quarantine | Build established: Hacker-Ninja 14565 | -3/Quarantine | Spotted Fortress 14581 | -3/Quarantine | Discovered new exit (range 6) 14581 | -3/Quarantine | Discovered new exit (range 7) 14583 | -3/Quarantine | Identified exit to Protoforge 14679 | -3/Quarantine | Search patrols dispatched 14692 | -3/Quarantine | Entered Protoforge 14741 | -3/Protoforge | Discovered new exit (range 5) 14741 | -3/Protoforge | Identified exit to Research 14757 | -3/Protoforge | Found Prototype Protection 14757 | -3/Protoforge | Identified Cep. Core Shell 14801 | -3/Protoforge | Superfortress began startup sequence 14867 | -3/Protoforge | Lost 4 parts (1p3u) 14891 | -3/Protoforge | UFD initiated attack on Protoforge (Readiness: Very Low) 14891 | -3/Protoforge | Loaded intel: 3 recycling unit locations 14923 | -3/Protoforge | Spotted EXE-6 14923 | -3/Protoforge | Spotted EXE-6 14927 | -3/Protoforge | Optimus greeted in Protoforge 14946 | -3/Protoforge | Identified Transdimensional Reconstructor 14946 | -3/Protoforge | Forge Plexus network access discovered 14958 | -3/Protoforge | Found Cep. XC Strikerail 14959 | -3/Protoforge | Found Cep. XC Strikerail 14962 | -3/Protoforge | Found Exp. Kinecellerator 14979 | -3/Protoforge | Spotted SKR-2 14979 | -3/Protoforge | Spotted SKR-2 14988 | -3/Protoforge | Found Exp. Melee Analysis Suite 15007 | -3/Protoforge | Spotted EXE-6 15007 | -3/Protoforge | Spotted EXE-6 15037 | -3/Protoforge | Scrapoid reinforcements arrived 15054 | -3/Protoforge | Lost 5 allies 15123 | -3/Protoforge | Spotted Executioner 15124 | -3/Protoforge | Spotted Striker 15126 | -3/Protoforge | Spotted Striker 15126 | -3/Protoforge | Spotted Executioner 15135 | -3/Protoforge | Spotted AP7-3 15135 | -3/Protoforge | Spotted AP7-3 15177 | -3/Protoforge | Lost 7 allies 15185 | -3/Protoforge | Spotted Executioner 15189 | -3/Protoforge | Spotted Striker 15200 | -3/Protoforge | Spotted Striker 15216 | -3/Protoforge | Destroyed AP7-3 15225 | -3/Protoforge | Spotted Executioner 15255 | -3/Protoforge | Lost 15 allies 15255 | -3/Protoforge | Found Exp. Core Analyzer 15293 | -3/Protoforge | Found Prototype Processor 15293 | -3/Protoforge | Identified Exp. Target Analyzer 15296 | -3/Protoforge | Found Cep. XC Strikerail 15302 | -3/Protoforge | Spotted Executioner 15320 | -3/Protoforge | Spotted Executioner 15324 | -3/Protoforge | Spotted Overlord 15386 | -3/Protoforge | Spotted Striker 15391 | -3/Protoforge | Spotted Executioner 15424 | -3/Protoforge | Destroyed Executioner 15425 | -3/Protoforge | Spotted Executioner 15431 | -3/Protoforge | Lost 15 allies 15448 | -3/Protoforge | Destroyed Overlord 15463 | -3/Protoforge | Found Exp. Active Sensor Suite 15466 | -3/Protoforge | Found Prototype Device 15466 | -3/Protoforge | Identified Adv. Kinecellerator 15475 | -3/Protoforge | Found Prototype Device 15475 | -3/Protoforge | Identified Exp. EM Shield 15476 | -3/Protoforge | Lost 3 allies 15498 | -3/Protoforge | Build established: Scavenger-Scout 15505 | -3/Protoforge | System corruption reached 10% 15510 | -3/Protoforge | Spotted Executioner 15521 | -3/Protoforge | Spotted Executioner 15521 | -3/Protoforge | Spotted Hotshot 15521 | -3/Protoforge | Spotted Hotshot 15526 | -3/Protoforge | Destroyed Hotshot 15561 | -3/Protoforge | Spotted Striker 15562 | -3/Protoforge | Spotted Executioner 15563 | -3/Protoforge | Spotted Executioner 15568 | -3/Protoforge | Spotted Executioner 15573 | -3/Protoforge | Destroyed 9 combat bots 15585 | -3/Protoforge | Destroyed Executioner 15606 | -3/Protoforge | P-80 Master assimilated allied 03F37-D 15618 | -3/Protoforge | Lost 20 allies 15620 | -3/Protoforge | Spotted Executioner 15637 | -3/Protoforge | Spotted Executioner 15663 | -3/Protoforge | Warped through subspace 15684 | -3/Protoforge | Core integrity fell below 50% 15698 | -3/Protoforge | Spotted Decapitator 15698 | -3/Protoforge | Spotted Decapitator 15698 | -3/Protoforge | Spotted Decapitator 15698 | -3/Protoforge | Spotted Decapitator 15711 | -3/Protoforge | Spotted V821-m 15711 | -3/Protoforge | Spotted V312-w 15713 | -3/Protoforge | Spotted Immortal 15713 | -3/Protoforge | Spotted Immortal 15723 | -3/Protoforge | Found Cep. Disintegration Ray 15726 | -3/Protoforge | Found Cep. XC Strikerail 15745 | -3/Protoforge | Destroyed Executioner 15766 | -3/Protoforge | Core integrity fell below 20% 15769 | -3/Protoforge | Destroyed by Immortal with Experimental Jetlance Last Messages --------------- 15716_ Immortal springs to life. 15720_ System corrupted: Slammed into ceiling. 15723_ Acquired Cep. Disintegration Ray. 15726_ Acquired Cep. XC Strikerail. 15730_ System corrupted: Matter fused (-8). 15737_ Nuclear Pulse Array+ destroyed. 15737_ Impulse Thruster Array destroyed. 15738_ Dropped Cep. XC Strikerail. 15745_ Executioner destroyed. 15752_ Slug penetrates Reinforced Barrier. 15755_ 0bP_NET: Lugger 768 inbound, all units not involved in other operations escort to target. 15755_ Penetrated by Slug. 15756_ System corrupted: Substantial component data lost. 15759_ Impulse Thruster Array destroyed. 15759_ Penetrated by Slug. 15759_ Machine disabled. 15763_ Exp. Target Analyzer destroyed. 15764_ Mic. Antimatter Reactor destroyed. 15769_ Imp. Diametric Drive destroyed. Map ----- +----------------------------------------------------+ | ?????????????????????????????????????????????????? | | ?????????????????????????????????????????????????? | | ?????????????????????????????????????????????????? | | ?????????????????????????????????????????????????? | | ?????????????????????????????????????????????????? | | ?????????????????????????????????????????????????? | | ?????????????????????????????????????????????????? | | ?????????????????????????????????????????????????? | | ?????????????????????????????????????????????????? | | ?????????????????????????????????????????????????? | | ?????????????????????????????????????????????????? | | ?????????????????????????????????????????????????? | | ?????????????????????????????????????????????????? | | ?????????????????????????????????????????????????? | | ?????????????????????????????????????????????????? | | ????######???????????????????????????????????????? | | ???? #???????????????????????????????????????? | | ????? Y??????????????#########????????????????? | | ????? Y??????????????# ]/V[[/#????????????????? | | ?????# #??????????????#]][] ] #????????????????? | | ?????# #??????????????# [[] [#???##???????????? | | ?????# #??????????????######" ### ###?????????? | | ?????# #???????????????????" "#?????????? | | ?????# #?????????????????#"" "#?????????? | | ?????# ################### ""#?????????? | | ?????# = Eg l l@ """#?????????? | | ?????# !%! h l """"#?????????? | | ?????# !#########+;######## ""#?????????? | | ?????# #??????? ?????# "#?????????? | | ?????# #??????? ????" """""""##?????????? | | ?????# #??????" " " ???" "[]/[[["#?????????? | | ?????# #??????"""""""# " "//[]]/"#?????????? | | ?????# #?????#########?VV#####"""""""#?????????? | | ?????# #???????????????###????########?????????? | | ?????# #???????????????????????????????????????? | | ?????# #???????????????????????????????????????? | | ?????# #???????????????????????????????????????? | | ?????# ! #???????????????????????????????????????? | | ?????# % #???????????????????????????????????????? | | ?????# #???????????????????????????????????????? | | ?????# #?????????????????!?!?!??!V!!???????????? | | ?????# #?????????????????!?V!!??!!!?!??????????? | | ?????# #???????????????????????????????????????? | | ?????# #???????????????????????????????????????? | | ?????# #???????????????????????????????????????? | | ?????# #################???????????????????????? | | ?????# ???????????????????? | | ?????# ???????????????????? | | ?????# ^########### #???????????????????????? | | ?????# #???????????????????????????????????????? | +----------------------------------------------------+ Best States ------------- Heat Dissipation 81 Energy Generation 36 Energy Capacity 665 Matter Stores 300 Matter Capacity 300 Sight Range 23 Robot Scan Range 20 Terrain Scan Density 10 ECM Strength 2 Jamming Range 14 Cloak Strength 4 Additional Mass Support 6 EM Shielding 4 Corruption Block 15 Armor Coverage 400 Resistance: TH 25 Core Shielding 90 Propulsion Shielding 90 Utility Shielding 66 Evasion (%) 76 Melee Accuracy 12 Target Analysis 10 Core Analysis 8 Recoil Reduction 2 Kinecelleration 50 Offensive Hacking 30 Defensive Hacking 14 Authchip Count 2 Trap Extractor Capacity 8 Item Schematics ----------------- Cld. VTOL Module | -6/Factory | Hacked Imp. Hacking Suite | -6/Factory | Hacked Hvy. Rocket Launcher | -6/Factory | Scanalyzed Matter Neutralizer | -6/Data Miner | Free Adv. Particle Charger | -6/Data Miner | Free Myomer Leg | -6/Data Miner | Free Imp. KE Penetrator | -6/Data Miner | Free Prc. Energy Filter | -6/Data Miner | Free Enh. Flexi-carbon Leg | -6/Data Miner | Free Lgt. Regenerative Plating | -6/Data Miner | Free Combat Drone Bay | -6/Data Miner | Free Adv. Hacking Suite | -5/Factory | Hacked Com. HERF Cannon | -5/Factory | Hacked Exp. Utility Shielding | -4/Factory | Hacked Cld. Nuclear Pulse Thruster | -4/Factory | Hacked Lgt. Fission Core | -4/Factory | Hacked Imp. Arc Thrower | -4/Zhirov | Free Exp. Optical Array | -4/Zhirov | Free Exp. Heat Sink | -4/Zhirov | Free Assault Drone Bay | -4/Zhirov | Free Imp. Q-thruster | -3/Research | Hacked Robot Schematics ------------------ R-10 Processor | -6/Data Miner | Free B-60 Warrior | -6/Data Miner | Free E-15 Imp | -6/Data Miner | Free G-67 Veteran | -6/Data Miner | Free Fabricated ------------ Cld. VTOL Module | x1 | -6/Factory | Authchip Cld. VTOL Module | x1 | -6/Factory | Authchip Adv. Hacking Suite | x1 | -5/Factory | Authchip Adv. Hacking Suite | x1 | -5/Factory | Authchip Repaired ---------- Lgt. Armor Plating | 67% | -9/Storage Hvy. Ion Engine | 71% | -9/Storage | Broken Imp. Reaction Control System | 25% | -6/Factory Adv. Surge Thruster | 5% | -4/Factory Imp. Powered Armor | 65% | -4/Factory Mic. Fission Core | 21% | -3/Quarantine Studied --------- Nuclear Pulse Thruster | -6/Factory | Hacked Nuclear Pulse Array | -5/Factory | Hacked Adv. Surge Thruster | -5/Factory | Hacked Mic. Fission Core | -4/Factory | Hacked Lgt. Fission Core | -4/Factory | Hacked Powered Hammer | -4/Factory | Hacked Field Propulsion Array | -3/Research | Hacked Lgt. Antimatter Reactor | -3/Quarantine | Hacked Force Lance | -3/Quarantine | Hacked Alien Tech Used ----------------- Integrated Dissipator Sigix Broadsword Transdimensional Reconstructor Achievements -------------- Bending The Rules Fitting Room Inventory(Loot) Official Business Recruitment Drive Some Acronyms Are Better Than Others Super-what Now? We Are One Challenges ------------ None Game ------ Seed ContainmentCentriumMount Manual? 0 Play Time 03:35:50 Cumulative 879.3 hours Start 2025.11.13 @ 23:23:53 End 2025.11.15 @ 21:56:57 Sessions 5 Manual Loads 0 Difficulty Rogue Special Mode None Game No. 751 Rogue 751 Adventurer 0 Explorer 0 Win Type - Total 46 Types 15/8/11/1/1/1/7/1/1/0 Lore% 84 Gallery% 85 Achievement% 60 Wizard Run 0 Options --------- Layout 0 ASCII 0 Keyboard 0 Movement Mouse Keybinds 1 Fullscreen 2 Font 24/Smallcaps Map View 76x50 Zoom Use 0% Tactical HUD 1 Map Filters NONE Filters NONE Steam 1 RUN: b6b8e4e4-b1a4-4199-87bd-b9db2d9281ab